Department,Entity, Transaction Date, Expense Type, Expense Area, Supplier Name,Transaction number, Amount, Invoice Description
FCDO,CSC,04/08/2020,Engagement,Admin Costs,Amex,NOM000986,4980.93,
FCDO,CSC,07/08/2020,Scholar Travel,Awards Costs,Amex,NOM000987,661.53,
FCDO,CSC,04/08/2020,Engagement,Programme Costs,NatWest CC,NOM000988,227.43,
FCDO,CSC,04/08/2020,Engagement,Programme Costs,NatWest CC,NOM000988,19,
FCDO,CSC,04/08/2020,Engagement,Programme Costs,NatWest CC,NOM000988,59,
FCDO,CSC,04/08/2020,Engagement,Programme Costs,NatWest CC,NOM000988,164.11,
FCDO,CSC,04/08/2020,Engagement,Programme Costs,NatWest CC,NOM000988,9.99,
FCDO,CSC,04/08/2020,Engagement,Programme Costs,NatWest CC,NOM000988,68.15,
FCDO,CSC,04/08/2020,Engagement,Programme Costs,NatWest CC,NOM000988,20.65,
FCDO,CSC,04/08/2020,Engagement,Programme Costs,NatWest CC,NOM000988,132.83,
FCDO,CSC,04/08/2020,Engagement,Programme Costs,NatWest CC,NOM000988,193.17,
FCDO,CSC,04/08/2020,Engagement,Programme Costs,NatWest CC,NOM000988,19,
FCDO,CSC,03/08/2020,Scholar Stipend,Awards Costs,Scholar,PIN048573,1110,
FCDO,CSC,03/08/2020,Scholar Stipend,Awards Costs,Scholar,PIN048574,1110,
FCDO,CSC,03/08/2020,Scholar Stipend,Awards Costs,Scholar,PIN048575,1110,
FCDO,CSC,03/08/2020,Scholar Stipend,Awards Costs,Scholar,PIN048576,1110,
FCDO,CSC,03/08/2020,Scholar Stipend,Awards Costs,Scholar,PIN048577,1110,
FCDO,CSC,03/08/2020,Scholar Stipend,Awards Costs,Scholar,PIN048578,1110,
FCDO,CSC,03/08/2020,Scholar Stipend,Awards Costs,Scholar,PIN048579,1110,
FCDO,CSC,03/08/2020,Scholar Allowances,Awards Costs,Scholar,PIN048580,745,
FCDO,CSC,03/08/2020,Scholar Allowances,Awards Costs,Scholar,PIN048580,1071.14,
FCDO,CSC,07/08/2020,Scholar Allowances,Awards Costs,Birmingham City University,PIN048585,1125,
FCDO,CSC,07/08/2020,Commission Meetings,Admin Costs,Commission Chair,PIN048588,600,
FCDO,CSC,07/08/2020,Commission Meetings,Admin Costs,Commissioner,PIN048589,900,
FCDO,CSC,07/08/2020,Commission Meetings,Admin Costs,Commissioner,PIN048591,600,
FCDO,CSC,07/08/2020,Commission Meetings,Admin Costs,Commissioner,PIN048592,900,
FCDO,CSC,07/08/2020,Commission Meetings,Admin Costs,Commissioner,PIN048594,600,
FCDO,CSC,07/08/2020,Commission Meetings,Admin Costs,Commissioner,PIN048595,600,
FCDO,CSC,07/08/2020,Commission Meetings,Admin Costs,Commissioner,PIN048596,600,
FCDO,CSC,07/08/2020,Commission Meetings,Admin Costs,Commissioner,PIN048597,600,
FCDO,CSC,07/08/2020,Commission Meetings,Admin Costs,Commissioner,PIN048598,900,
FCDO,CSC,05/08/2020,Scholar Stipend,Awards Costs,Scholar,PIN048605,1110,
FCDO,CSC,05/08/2020,Scholar Stipend,Awards Costs,Scholar,PIN048606,2220,
FCDO,CSC,06/08/2020,Scholar Travel,Awards Costs,Scholar,PIN048607,44,
FCDO,CSC,06/08/2020,Scholar Travel,Awards Costs,Scholar,PIN048607,710.11,
FCDO,CSC,06/08/2020,Scholar Allowances,Awards Costs,Scholar,PIN048608,478,
FCDO,CSC,06/08/2020,Scholar Allowances,Awards Costs,Scholar,PIN048608,712,
FCDO,CSC,06/08/2020,Scholar Stipend,Awards Costs,Scholar,PIN048608,2220,
FCDO,CSC,10/08/2020,Scholar Stipend,Awards Costs,Scholar,PIN048609,929.93,
FCDO,CSC,12/08/2020,Scholar Stipend,Awards Costs,Scholar,PIN048611,1110,
FCDO,CSC,14/08/2020,Scholar Travel,Awards Costs,The Cambridge Commonwealth Trust,PIN048612,530,
FCDO,CSC,14/08/2020,Scholar Allowances,Awards Costs,The Cambridge Commonwealth Trust,PIN048612,2025,
FCDO,CSC,14/08/2020,Scholar Allowances,Awards Costs,The Cambridge Commonwealth Trust,PIN048612,1600,
FCDO,CSC,14/08/2020,Scholar Travel,Awards Costs,Bangor University,PIN048614,1197.9,
FCDO,CSC,14/08/2020,Scholar Travel,Awards Costs,Scholar,PIN048616,1000,
FCDO,CSC,14/08/2020,Tuition Fee,Awards Costs,University of Aberdeen,PIN048617,6200,
FCDO,CSC,14/08/2020,Tuition Fee,Awards Costs,University of Aberdeen,PIN048618,3100,
FCDO,CSC,14/08/2020,Tuition Fee,Awards Costs,University of Aberdeen,PIN048619,1550,
FCDO,CSC,14/08/2020,Tuition Fee,Awards Costs,University of Aberdeen,PIN048620,4650,
FCDO,CSC,14/08/2020,Tuition Fee,Awards Costs,University of Aberdeen,PIN048621,4650,
FCDO,CSC,14/08/2020,Tuition Fee,Awards Costs,University of Aberdeen,PIN048622,4650,
FCDO,CSC,14/08/2020,Tuition Fee,Awards Costs,University of Aberdeen,PIN048623,3100,
FCDO,CSC,14/08/2020,Tuition Fee,Awards Costs,The Open University,PIN048624,9850,
FCDO,CSC,14/08/2020,Scholar Travel,Awards Costs,Scholar,PIN048625,702.55,
FCDO,CSC,14/08/2020,Tuition Fee,Awards Costs,University of London,PIN048626,33480,
FCDO,CSC,14/08/2020,Scholar Allowances,Awards Costs,Scholar,PIN048628,1676.95,
FCDO,CSC,14/08/2020,Scholar Allowances,Awards Costs,Scholar,PIN048629,615.75,
FCDO,CSC,14/08/2020,Scholar Allowances,Awards Costs,Scholar,PIN048630,2080.42,
FCDO,CSC,13/08/2020,Scholar Travel,Awards Costs,Scholar,PIN048634,1262.16,
FCDO,CSC,13/08/2020,Scholar Allowances,Awards Costs,Scholar,PIN048636,1110,
FCDO,CSC,18/08/2020,Scholar Stipend,Awards Costs,Scholar,PIN048639,2220,
FCDO,CSC,18/08/2020,Scholar Allowances,Awards Costs,Scholar,PIN048640,380.8,
FCDO,CSC,18/08/2020,Scholar Allowances,Awards Costs,Scholar,PIN048640,888,
FCDO,CSC,18/08/2020,Scholar Allowances,Awards Costs,Scholar,PIN048642,888,
FCDO,CSC,21/08/2020,Scholar Travel,Awards Costs,Scholar,PIN048645,535,
FCDO,CSC,21/08/2020,Scholar Travel,Awards Costs,Scholar,PIN048647,664.56,
FCDO,CSC,21/08/2020,Scholar Allowances,Awards Costs,Scholar,PIN048648,600,
FCDO,CSC,21/08/2020,Scholar Travel,Awards Costs,Scholar,PIN048649,967.48,
FCDO,CSC,21/08/2020,Scholar Travel,Awards Costs,Scholar,PIN048650,85,
FCDO,CSC,21/08/2020,Scholar Allowances,Awards Costs,Scholar,PIN048650,700,
FCDO,CSC,21/08/2020,Scholar Allowances,Awards Costs,Scholar,PIN048650,200,
FCDO,CSC,21/08/2020,Scholar Travel,Awards Costs,Scholar,PIN048650,463.67,
FCDO,CSC,21/08/2020,Scholar Engagement,Programme Costs,Scholar,PIN048651,1000,
FCDO,CSC,21/08/2020,Scholar Stipend,Awards Costs,Scholar,PIN048652,1362,
FCDO,CSC,21/08/2020,Scholar Allowances,Awards Costs,Scholar,PIN048654,275,
FCDO,CSC,21/08/2020,Scholar Stipend,Awards Costs,Scholar,PIN048654,364.68,
FCDO,CSC,26/08/2020,Scholar Allowances,Awards Costs,Scholar,PIN048655,200,
FCDO,CSC,26/08/2020,Scholar Stipend,Awards Costs,Scholar,PIN048655,401.14,
FCDO,CSC,26/08/2020,Scholar Stipend,Awards Costs,Scholar,PIN048656,1110,
FCDO,CSC,26/08/2020,Scholar Allowances,Awards Costs,Scholar,PIN048657,250,
FCDO,CSC,26/08/2020,Scholar Stipend,Awards Costs,Scholar,PIN048657,536.96,
FCDO,CSC,26/08/2020,Scholar Allowances,Awards Costs,Scholar,PIN048658,200,
FCDO,CSC,26/08/2020,Scholar Stipend,Awards Costs,Scholar,PIN048658,729.36,
FCDO,CSC,26/08/2020,Scholar Allowances,Awards Costs,Scholar,PIN048659,250,
FCDO,CSC,26/08/2020,Scholar Stipend,Awards Costs,Scholar,PIN048659,802.3,
FCDO,CSC,26/08/2020,Scholar Allowances,Awards Costs,Scholar,PIN048662,200,
FCDO,CSC,26/08/2020,Scholar Stipend,Awards Costs,Scholar,PIN048662,401.14,
FCDO,CSC,26/08/2020,Scholar Allowances,Awards Costs,Scholar,PIN048664,200,
FCDO,CSC,26/08/2020,Scholar Stipend,Awards Costs,Scholar,PIN048664,911.7,
FCDO,CSC,26/08/2020,Scholar Allowances,Awards Costs,Scholar,PIN048665,300,
FCDO,CSC,26/08/2020,Scholar Stipend,Awards Costs,Scholar,PIN048665,364.68,
FCDO,CSC,26/08/2020,Scholar Allowances,Awards Costs,Scholar,PIN048666,300,
FCDO,CSC,26/08/2020,Scholar Stipend,Awards Costs,Scholar,PIN048666,547.02,
FCDO,CSC,26/08/2020,Scholar Allowances,Awards Costs,Scholar,PIN048667,250,
FCDO,CSC,26/08/2020,Scholar Stipend,Awards Costs,Scholar,PIN048667,715.96,
FCDO,CSC,26/08/2020,Scholar Allowances,Awards Costs,Scholar,PIN048669,200,
FCDO,CSC,26/08/2020,Scholar Stipend,Awards Costs,Scholar,PIN048669,911.7,
FCDO,CSC,26/08/2020,Scholar Allowances,Awards Costs,Scholar,PIN048670,275,
FCDO,CSC,26/08/2020,Scholar Stipend,Awards Costs,Scholar,PIN048670,437.62,
FCDO,CSC,26/08/2020,Scholar Allowances,Awards Costs,Scholar,PIN048670,94.23,
FCDO,CSC,26/08/2020,Scholar Allowances,Awards Costs,Scholar,PIN048670,94.23,
FCDO,CSC,26/08/2020,Scholar Stipend,Awards Costs,Scholar,PIN048672,2220,
FCDO,CSC,26/08/2020,Scholar Stipend,Awards Costs,Scholar,PIN048674,1110,
FCDO,CSC,26/08/2020,Scholar Allowances,Awards Costs,Scholar,PIN048674,952,
FCDO,CSC,26/08/2020,Scholar Travel,Awards Costs,Scholar,PIN048675,530.29,
FCDO,CSC,28/08/2020,Scholar Travel,Awards Costs,Scholar,PIN048678,55.9,
FCDO,CSC,28/08/2020,Scholar Travel,Awards Costs,Scholar,PIN048678,1129.65,
FCDO,CSC,28/08/2020,Scholar Allowances,Awards Costs,Scholar,PIN048679,275,
FCDO,CSC,28/08/2020,Scholar Stipend,Awards Costs,Scholar,PIN048679,401.14,
FCDO,CSC,28/08/2020,Scholar Allowances,Awards Costs,Scholar,PIN048681,300,
FCDO,CSC,28/08/2020,Scholar Stipend,Awards Costs,Scholar,PIN048681,547.02,
FCDO,CSC,27/08/2020,Scholar Allowances,Awards Costs,Scholar,PIN048684,72.93,
FCDO,CSC,27/08/2020,Scholar Stipend,Awards Costs,Scholar,PIN048684,547.02,
FCDO,CSC,27/08/2020,Scholar Stipend,Awards Costs,Scholar,PIN048685,838.76,
FCDO,CSC,27/08/2020,Scholar Stipend,Awards Costs,Scholar,PIN048686,2220,
FCDO,CSC,27/08/2020,Scholar Allowances,Awards Costs,Scholar,PIN048687,200,
FCDO,CSC,27/08/2020,Scholar Stipend,Awards Costs,Scholar,PIN048687,1252.93,
FCDO,CSC,27/08/2020,Scholar Allowances,Awards Costs,Scholar,PIN048689,275,
FCDO,CSC,27/08/2020,Scholar Stipend,Awards Costs,Scholar,PIN048689,583.49,
FCDO,CSC,27/08/2020,Scholar Stipend,Awards Costs,Scholar,PIN048690,838.76,
FCDO,CSC,30/07/2020,Bank Charges,Programme Costs,MasterCard Prepaid Management Services Ltd,PIN048760,0.55,
FCDO,CSC,30/07/2020,Visa Costs,Awards Costs,Scholar,PIN048760,55,
FCDO,CSC,30/07/2020,Scholar Stipend,Awards Costs,Scholar,PIN048760,-1823.67,
FCDO,CSC,14/09/2020,Engagement,Admin Costs,Amex,NOM000993,5020.4,
FCDO,CSC,04/09/2020,Engagement,Programme Costs,NatWest CC,NOM000994,19,
FCDO,CSC,04/09/2020,Engagement,Programme Costs,NatWest CC,NOM000994,833.39,
FCDO,CSC,04/09/2020,Engagement,Programme Costs,NatWest CC,NOM000994,361.22,
FCDO,CSC,04/09/2020,Engagement,Programme Costs,NatWest CC,NOM000994,59,
FCDO,CSC,04/09/2020,Engagement,Programme Costs,NatWest CC,NOM000994,9.99,
FCDO,CSC,04/09/2020,Engagement,Programme Costs,NatWest CC,NOM000994,246.4,
FCDO,CSC,04/09/2020,Engagement,Programme Costs,NatWest CC,NOM000994,86.27,
FCDO,CSC,04/09/2020,Engagement,Programme Costs,NatWest CC,NOM000994,19.78,
FCDO,CSC,04/09/2020,Engagement,Programme Costs,NatWest CC,NOM000994,148.57,
FCDO,CSC,02/09/2020,Scholar Stipend,Awards Costs,Scholar,PIN048693,547.02,
FCDO,CSC,02/09/2020,Scholar Stipend,Awards Costs,Scholar,PIN048694,1297.68,
FCDO,CSC,02/09/2020,Scholar Stipend,Awards Costs,Scholar,PIN048695,1110,
FCDO,CSC,02/09/2020,Scholar Stipend,Awards Costs,Scholar,PIN048696,510.55,
FCDO,CSC,02/09/2020,Scholar Stipend,Awards Costs,Scholar,PIN048697,911.7,
FCDO,CSC,02/09/2020,Scholar Stipend,Awards Costs,Scholar,PIN048698,1110,
FCDO,CSC,02/09/2020,Scholar Stipend,Awards Costs,Scholar,PIN048699,1110,
FCDO,CSC,02/09/2020,Scholar Stipend,Awards Costs,Scholar,PIN048700,1110,
FCDO,CSC,02/09/2020,Scholar Stipend,Awards Costs,Scholar,PIN048701,1073.94,
FCDO,CSC,02/09/2020,Scholar Stipend,Awards Costs,Scholar,PIN048702,765.83,
FCDO,CSC,02/09/2020,Scholar Stipend,Awards Costs,Scholar,PIN048703,619.96,
FCDO,CSC,02/09/2020,Scholar Stipend,Awards Costs,Scholar,PIN048704,1073.94,
FCDO,CSC,02/09/2020,Scholar Stipend,Awards Costs,Scholar,PIN048705,619.96,
FCDO,CSC,02/09/2020,Scholar Stipend,Awards Costs,Scholar,PIN048706,1110,
FCDO,CSC,02/09/2020,Scholar Stipend,Awards Costs,Scholar,PIN048707,729.36,
FCDO,CSC,02/09/2020,Scholar Stipend,Awards Costs,Scholar,PIN048708,875.24,
FCDO,CSC,02/09/2020,Scholar Stipend,Awards Costs,Scholar,PIN048709,619.96,
FCDO,CSC,02/09/2020,Scholar Stipend,Awards Costs,Scholar,PIN048710,1362,
FCDO,CSC,02/09/2020,Scholar Stipend,Awards Costs,Scholar,PIN048711,1110,
FCDO,CSC,02/09/2020,Scholar Stipend,Awards Costs,Scholar,PIN048712,984.64,
FCDO,CSC,02/09/2020,Scholar Stipend,Awards Costs,Scholar,PIN048713,1110,
FCDO,CSC,02/09/2020,Scholar Stipend,Awards Costs,Scholar,PIN048714,875.24,
FCDO,CSC,02/09/2020,Scholar Stipend,Awards Costs,Scholar,PIN048715,1110,
FCDO,CSC,02/09/2020,Scholar Stipend,Awards Costs,Scholar,PIN048716,1362,
FCDO,CSC,02/09/2020,Scholar Stipend,Awards Costs,Scholar,PIN048717,1057.58,
FCDO,CSC,02/09/2020,Scholar Stipend,Awards Costs,Scholar,PIN048718,692.9,
FCDO,CSC,04/09/2020,Scholar Stipend,Awards Costs,Scholar,PIN048751,1110,
FCDO,CSC,04/09/2020,Scholar Stipend,Awards Costs,Scholar,PIN048752,547.02,
FCDO,CSC,04/09/2020,Scholar Stipend,Awards Costs,Scholar,PIN048753,1110,
FCDO,CSC,04/09/2020,Scholar Allowances,Awards Costs,Scholar,PIN048755,275,
FCDO,CSC,04/09/2020,Scholar Stipend,Awards Costs,Scholar,PIN048755,875.24,
FCDO,CSC,04/09/2020,Scholar Allowances,Awards Costs,Scholar,PIN048756,250,
FCDO,CSC,04/09/2020,Scholar Stipend,Awards Costs,Scholar,PIN048756,1110,
FCDO,CSC,04/09/2020,Scholar Allowances,Awards Costs,Scholar,PIN048757,300,
FCDO,CSC,04/09/2020,Scholar Stipend,Awards Costs,Scholar,PIN048757,765.83,
FCDO,CSC,04/09/2020,Scholar Allowances,Awards Costs,Scholar,PIN048758,239,
FCDO,CSC,04/09/2020,Scholar Allowances,Awards Costs,Scholar,PIN048758,356,
FCDO,CSC,04/09/2020,Scholar Stipend,Awards Costs,Scholar,PIN048758,1110,
FCDO,CSC,04/09/2020,Scholar Stipend,Awards Costs,Scholar,PIN048761,1252.93,
FCDO,CSC,04/09/2020,Scholar Stipend,Awards Costs,Scholar,PIN048762,1110,
FCDO,CSC,04/09/2020,Scholar Stipend,Awards Costs,Scholar,PIN048763,1110,
FCDO,CSC,04/09/2020,Scholar Stipend,Awards Costs,Scholar,PIN048764,1110,
FCDO,CSC,04/09/2020,Scholar Stipend,Awards Costs,Scholar,PIN048765,1110,
FCDO,CSC,04/09/2020,Scholar Stipend,Awards Costs,Scholar,PIN048766,1110,
FCDO,CSC,04/09/2020,Scholar Stipend,Awards Costs,Scholar,PIN048767,547.02,
FCDO,CSC,04/09/2020,Scholar Stipend,Awards Costs,Scholar,PIN048769,1362,
FCDO,CSC,04/09/2020,Scholar Stipend,Awards Costs,Scholar,PIN048770,802.3,
FCDO,CSC,04/09/2020,Scholar Stipend,Awards Costs,Scholar,PIN048771,1110,
FCDO,CSC,04/09/2020,Scholar Stipend,Awards Costs,Scholar,PIN048772,875.24,
FCDO,CSC,04/09/2020,Scholar Stipend,Awards Costs,Scholar,PIN048773,1110,
FCDO,CSC,04/09/2020,Scholar Stipend,Awards Costs,Scholar,PIN048774,1252.93,
FCDO,CSC,04/09/2020,Scholar Stipend,Awards Costs,Scholar,PIN048775,1110,
FCDO,CSC,04/09/2020,Scholar Stipend,Awards Costs,Scholar,PIN048776,1057.58,
FCDO,CSC,04/09/2020,Scholar Stipend,Awards Costs,Scholar,PIN048778,547.02,
FCDO,CSC,04/09/2020,Scholar Stipend,Awards Costs,Scholar,PIN048779,1110,
FCDO,CSC,04/09/2020,Scholar Stipend,Awards Costs,Scholar,PIN048780,1110,
FCDO,CSC,04/09/2020,Scholar Stipend,Awards Costs,Scholar,PIN048781,1110,
FCDO,CSC,04/09/2020,Scholar Stipend,Awards Costs,Scholar,PIN048782,1110,
FCDO,CSC,04/09/2020,Scholar Stipend,Awards Costs,Scholar,PIN048783,802.3,
FCDO,CSC,04/09/2020,Scholar Stipend,Awards Costs,Scholar,PIN048784,984.44,
FCDO,CSC,04/09/2020,Scholar Stipend,Awards Costs,Scholar,PIN048785,948.17,
FCDO,CSC,04/09/2020,Scholar Stipend,Awards Costs,Scholar,PIN048786,1110,
FCDO,CSC,04/09/2020,Scholar Stipend,Awards Costs,Scholar,PIN048787,1110,
FCDO,CSC,04/09/2020,Scholar Stipend,Awards Costs,Scholar,PIN048788,875.24,
FCDO,CSC,04/09/2020,Scholar Allowances,Awards Costs,Scholar,PIN048800,555,
FCDO,CSC,07/09/2020,Scholar Travel,Awards Costs,Scholar,PIN048803,975,
FCDO,CSC,07/09/2020,Scholar Allowances,Awards Costs,Scholar,PIN048805,250,
FCDO,CSC,07/09/2020,Scholar Stipend,Awards Costs,Scholar,PIN048805,547.02,
FCDO,CSC,07/09/2020,Scholar Stipend,Awards Costs,Scholar,PIN048806,838.77,
FCDO,CSC,07/09/2020,Scholar Allowances,Awards Costs,Scholar,PIN048806,250,
FCDO,CSC,07/09/2020,Scholar Allowances,Awards Costs,Scholar,PIN048807,250,
FCDO,CSC,07/09/2020,Scholar Stipend,Awards Costs,Scholar,PIN048807,802.3,
FCDO,CSC,07/09/2020,Scholar Stipend,Awards Costs,Scholar,PIN048808,619.96,
FCDO,CSC,07/09/2020,Scholar Allowances,Awards Costs,Scholar,PIN048808,250,
FCDO,CSC,07/09/2020,Scholar Allowances,Awards Costs,Scholar,PIN048809,250,
FCDO,CSC,07/09/2020,Scholar Stipend,Awards Costs,Scholar,PIN048809,547.02,
FCDO,CSC,07/09/2020,Scholar Stipend,Awards Costs,Scholar,PIN048810,547.02,
FCDO,CSC,07/09/2020,Scholar Allowances,Awards Costs,Scholar,PIN048810,250,
FCDO,CSC,08/09/2020,Scholar Stipend,Awards Costs,Scholar,PIN048811,538.49,
FCDO,CSC,08/09/2020,Scholar Stipend,Awards Costs,Scholar,PIN048812,1362,
FCDO,CSC,08/09/2020,Scholar Stipend,Awards Costs,Scholar,PIN048813,1021.11,
FCDO,CSC,08/09/2020,Scholar Allowances,Awards Costs,Scholar,PIN048814,250,
FCDO,CSC,08/09/2020,Scholar Stipend,Awards Costs,Scholar,PIN048814,547.02,
FCDO,CSC,08/09/2020,Scholar Stipend,Awards Costs,Scholar,PIN048815,1110,
FCDO,CSC,08/09/2020,Scholar Allowances,Awards Costs,Scholar,PIN048815,300,
FCDO,CSC,08/09/2020,Scholar Stipend,Awards Costs,Scholar,PIN048816,838.77,
FCDO,CSC,08/09/2020,Scholar Allowances,Awards Costs,Scholar,PIN048817,275,
FCDO,CSC,08/09/2020,Scholar Stipend,Awards Costs,Scholar,PIN048817,984.44,
FCDO,CSC,08/09/2020,Scholar Travel,Awards Costs,Scholar,PIN048818,666.67,
FCDO,CSC,09/09/2020,Scholar Stipend,Awards Costs,Scholar,PIN048820,802.29,
FCDO,CSC,09/09/2020,Scholar Stipend,Awards Costs,Scholar,PIN048821,1110,
FCDO,CSC,09/09/2020,Scholar Allowances,Awards Costs,Scholar,PIN048822,300,
FCDO,CSC,09/09/2020,Scholar Stipend,Awards Costs,Scholar,PIN048822,984.44,
FCDO,CSC,09/09/2020,Scholar Allowances,Awards Costs,Scholar,PIN048823,250,
FCDO,CSC,09/09/2020,Scholar Stipend,Awards Costs,Scholar,PIN048823,984.44,
FCDO,CSC,09/09/2020,Scholar Allowances,Awards Costs,Scholar,PIN048824,200,
FCDO,CSC,09/09/2020,Scholar Stipend,Awards Costs,Scholar,PIN048824,1057.58,
FCDO,CSC,09/09/2020,Scholar Stipend,Awards Costs,Scholar,PIN048825,1110,
FCDO,CSC,09/09/2020,Scholar Stipend,Awards Costs,Scholar,PIN048826,1110,
FCDO,CSC,09/09/2020,Scholar Allowances,Awards Costs,Scholar,PIN048827,250,
FCDO,CSC,09/09/2020,Scholar Stipend,Awards Costs,Scholar,PIN048827,547.02,
FCDO,CSC,09/09/2020,Scholar Allowances,Awards Costs,Scholar,PIN048828,300,
FCDO,CSC,09/09/2020,Scholar Stipend,Awards Costs,Scholar,PIN048828,984.44,
FCDO,CSC,09/09/2020,Scholar Stipend,Awards Costs,Scholar,PIN048829,1021.11,
FCDO,CSC,09/09/2020,Scholar Stipend,Awards Costs,Scholar,PIN048830,1110,
FCDO,CSC,09/09/2020,Scholar Stipend,Awards Costs,Scholar,PIN048831,1362,
FCDO,CSC,09/09/2020,Scholar Stipend,Awards Costs,Scholar,PIN048832,1362,
FCDO,CSC,09/09/2020,Scholar Stipend,Awards Costs,Scholar,PIN048833,1110,
FCDO,CSC,09/09/2020,Scholar Allowances,Awards Costs,Scholar,PIN048834,473,
FCDO,CSC,09/09/2020,Scholar Allowances,Awards Costs,Scholar,PIN048834,239,
FCDO,CSC,09/09/2020,Scholar Stipend,Awards Costs,Scholar,PIN048834,1110,
FCDO,CSC,09/09/2020,Scholar Allowances,Awards Costs,Scholar,PIN048835,275,
FCDO,CSC,09/09/2020,Scholar Stipend,Awards Costs,Scholar,PIN048835,447.47,
FCDO,CSC,11/09/2020,Scholar Allowances,Awards Costs,Scholar,PIN048839,600,
FCDO,CSC,11/09/2020,Scholar Stipend,Awards Costs,Scholar,PIN048841,547.02,
FCDO,CSC,11/09/2020,Scholar Stipend,Awards Costs,Scholar,PIN048842,671.21,
FCDO,CSC,11/09/2020,Scholar Stipend,Awards Costs,Scholar,PIN048843,583.49,
FCDO,CSC,11/09/2020,Scholar Stipend,Awards Costs,Scholar,PIN048844,1021.1,
FCDO,CSC,11/09/2020,Scholar Stipend,Awards Costs,Scholar,PIN048846,875.24,
FCDO,CSC,11/09/2020,Scholar Stipend,Awards Costs,Scholar,PIN048847,1110,
FCDO,CSC,11/09/2020,Scholar Stipend,Awards Costs,Scholar,PIN048848,656.42,
FCDO,CSC,11/09/2020,Scholar Stipend,Awards Costs,Scholar,PIN048849,583.49,
FCDO,CSC,11/09/2020,Scholar Stipend,Awards Costs,Scholar,PIN048850,547.02,
FCDO,CSC,11/09/2020,Scholar Stipend,Awards Costs,Scholar,PIN048851,547.02,
FCDO,CSC,11/09/2020,Scholar Allowances,Awards Costs,Scholar,PIN048854,593,
FCDO,CSC,11/09/2020,Scholar Stipend,Awards Costs,Scholar,PIN048867,562.98,
FCDO,CSC,11/09/2020,Scholar Travel,Awards Costs,Scholar,PIN048869,1045,
FCDO,CSC,11/09/2020,Scholar Travel,Awards Costs,Scholar,PIN048870,1072,
FCDO,CSC,18/09/2020,Award Support Costs,Awards Costs,Queens University Belfast,PIN048871,1500,
FCDO,CSC,15/09/2020,Scholar Stipend,Awards Costs,Scholar,PIN048873,692.89,
FCDO,CSC,15/09/2020,Scholar Stipend,Awards Costs,Scholar,PIN048874,619.95,
FCDO,CSC,15/09/2020,Scholar Stipend,Awards Costs,Scholar,PIN048875,875.24,
FCDO,CSC,15/09/2020,Scholar Stipend,Awards Costs,Scholar,PIN048877,984.44,
FCDO,CSC,15/09/2020,Scholar Stipend,Awards Costs,Scholar,PIN048879,715.96,
FCDO,CSC,15/09/2020,Scholar Stipend,Awards Costs,Scholar,PIN048880,875.24,
FCDO,CSC,15/09/2020,Scholar Stipend,Awards Costs,Scholar,PIN048881,1110,
FCDO,CSC,15/09/2020,Scholar Allowances,Awards Costs,Scholar,PIN048892,-149,
FCDO,CSC,15/09/2020,Scholar Stipend,Awards Costs,Scholar,PIN048892,745.32,
FCDO,CSC,15/09/2020,Scholar Allowances,Awards Costs,Scholar,PIN048893,284.8,
FCDO,CSC,15/09/2020,Scholar Allowances,Awards Costs,Scholar,PIN048893,191.2,
FCDO,CSC,15/09/2020,Scholar Allowances,Awards Costs,Scholar,PIN048893,555,
FCDO,CSC,17/09/2020,Scholar Allowances,Awards Costs,Scholar,PIN048894,250,
FCDO,CSC,17/09/2020,Scholar Stipend,Awards Costs,Scholar,PIN048894,1110,
FCDO,CSC,17/09/2020,Scholar Stipend,Awards Costs,Scholar,PIN048895,401.15,
FCDO,CSC,17/09/2020,Scholar Allowances,Awards Costs,Scholar,PIN048895,300,
FCDO,CSC,17/09/2020,Scholar Allowances,Awards Costs,Scholar,PIN048896,250,
FCDO,CSC,17/09/2020,Scholar Stipend,Awards Costs,Scholar,PIN048896,547.02,
FCDO,CSC,18/09/2020,Scholar Stipend,Awards Costs,Scholar,PIN048897,1252.93,
FCDO,CSC,18/09/2020,Scholar Stipend,Awards Costs,Scholar,PIN048898,760.71,
FCDO,CSC,18/09/2020,Scholar Stipend,Awards Costs,Scholar,PIN048899,1110,
FCDO,CSC,18/09/2020,Scholar Stipend,Awards Costs,Scholar,PIN048900,619.96,
FCDO,CSC,18/09/2020,Scholar Stipend,Awards Costs,Scholar,PIN048901,1110,
FCDO,CSC,18/09/2020,Scholar Stipend,Awards Costs,Scholar,PIN048902,875.24,
FCDO,CSC,18/09/2020,Scholar Stipend,Awards Costs,Scholar,PIN048903,838.77,
FCDO,CSC,18/09/2020,Scholar Stipend,Awards Costs,Scholar,PIN048904,656.43,
FCDO,CSC,18/09/2020,Scholar Allowances,Awards Costs,Scholar,PIN048910,550,
FCDO,CSC,21/09/2020,Scholar Stipend,Awards Costs,Scholar,PIN048912,984.44,
FCDO,CSC,21/09/2020,Scholar Allowances,Awards Costs,Scholar,PIN048912,300,
FCDO,CSC,21/09/2020,Scholar Allowances,Awards Costs,Scholar,PIN048915,239,
FCDO,CSC,21/09/2020,Scholar Allowances,Awards Costs,Scholar,PIN048915,239,
FCDO,CSC,21/09/2020,Scholar Stipend,Awards Costs,Scholar,PIN048915,1110,
FCDO,CSC,21/09/2020,Scholar Allowances,Awards Costs,Scholar,PIN048917,612.48,
FCDO,CSC,21/09/2020,Scholar Allowances,Awards Costs,Scholar,PIN048917,573.23,
FCDO,CSC,21/09/2020,Scholar Stipend,Awards Costs,Scholar,PIN048918,692.89,
FCDO,CSC,23/09/2020,Scholar Allowances,Awards Costs,Scholar,PIN048919,250,
FCDO,CSC,23/09/2020,Scholar Stipend,Awards Costs,Scholar,PIN048919,838.77,
FCDO,CSC,23/09/2020,Scholar Allowances,Awards Costs,Scholar,PIN048920,300,
FCDO,CSC,23/09/2020,Scholar Stipend,Awards Costs,Scholar,PIN048920,1110,
FCDO,CSC,25/09/2020,Tuition Fee,Awards Costs,Loughborough University,PIN048921,9100,
FCDO,CSC,25/09/2020,Scholar Travel,Awards Costs,Scholar,PIN048922,535,
FCDO,CSC,23/09/2020,Scholar Allowances,Awards Costs,Scholar,PIN048927,250,
FCDO,CSC,23/09/2020,Scholar Stipend,Awards Costs,Scholar,PIN048927,875.24,
FCDO,CSC,23/09/2020,Scholar Allowances,Awards Costs,Scholar,PIN048928,125.56,
FCDO,CSC,23/09/2020,Scholar Stipend,Awards Costs,Scholar,PIN048928,984.44,
FCDO,CSC,23/09/2020,Scholar Allowances,Awards Costs,Scholar,PIN048932,300,
FCDO,CSC,23/09/2020,Scholar Stipend,Awards Costs,Scholar,PIN048932,1362,
FCDO,CSC,23/09/2020,Scholar Stipend,Awards Costs,Scholar,PIN048933,838.77,
FCDO,CSC,23/09/2020,Scholar Allowances,Awards Costs,Scholar,PIN048933,200,
FCDO,CSC,23/09/2020,Scholar Allowances,Awards Costs,Scholar,PIN048934,300,
FCDO,CSC,23/09/2020,Scholar Stipend,Awards Costs,Scholar,PIN048934,765.83,
FCDO,CSC,23/09/2020,Scholar Stipend,Awards Costs,Scholar,PIN048935,671.21,
FCDO,CSC,23/09/2020,Scholar Allowances,Awards Costs,Scholar,PIN048935,200,
FCDO,CSC,23/09/2020,Scholar Allowances,Awards Costs,Scholar,PIN048936,300,
FCDO,CSC,23/09/2020,Scholar Stipend,Awards Costs,Scholar,PIN048936,729.36,
FCDO,CSC,23/09/2020,Scholar Stipend,Awards Costs,Scholar,PIN048937,1252.93,
FCDO,CSC,23/09/2020,Scholar Allowances,Awards Costs,Scholar,PIN048937,250,
FCDO,CSC,23/09/2020,Scholar Stipend,Awards Costs,Scholar,PIN048939,1783.38,
FCDO,CSC,28/09/2020,Scholar Stipend,Awards Costs,Scholar,PIN048941,1116,
FCDO,CSC,28/09/2020,Scholar Stipend,Awards Costs,Scholar,PIN048942,1369,
FCDO,CSC,28/09/2020,Scholar Stipend,Awards Costs,Scholar,PIN048943,1116,
FCDO,CSC,28/09/2020,Scholar Stipend,Awards Costs,Scholar,PIN048944,1116,
FCDO,CSC,28/09/2020,Scholar Stipend,Awards Costs,Scholar,PIN048945,1116,
FCDO,CSC,28/09/2020,Scholar Stipend,Awards Costs,Scholar,PIN048946,1116,
FCDO,CSC,28/09/2020,Scholar Stipend,Awards Costs,Scholar,PIN048947,1116,
FCDO,CSC,28/09/2020,Scholar Stipend,Awards Costs,Scholar,PIN048948,1369,
FCDO,CSC,28/09/2020,Scholar Stipend,Awards Costs,Scholar,PIN048949,1116,
FCDO,CSC,28/09/2020,Scholar Stipend,Awards Costs,Scholar,PIN048950,1116,
FCDO,CSC,28/09/2020,Scholar Stipend,Awards Costs,Scholar,PIN048951,1116,
FCDO,CSC,28/09/2020,Scholar Stipend,Awards Costs,Scholar,PIN048952,1116,
FCDO,CSC,28/09/2020,Scholar Stipend,Awards Costs,Scholar,PIN048953,558,
FCDO,CSC,28/09/2020,Scholar Stipend,Awards Costs,Scholar,PIN048954,684.5,
FCDO,CSC,28/09/2020,Scholar Stipend,Awards Costs,Scholar,PIN048955,1116,
FCDO,CSC,28/09/2020,Scholar Stipend,Awards Costs,Scholar,PIN048956,1116,
FCDO,CSC,28/09/2020,Scholar Stipend,Awards Costs,Scholar,PIN048957,1369,
FCDO,CSC,28/09/2020,Scholar Stipend,Awards Costs,Scholar,PIN048958,1369,
FCDO,CSC,28/09/2020,Scholar Stipend,Awards Costs,Scholar,PIN048959,1116,
FCDO,CSC,28/09/2020,Scholar Stipend,Awards Costs,Scholar,PIN048960,1116,
FCDO,CSC,28/09/2020,Scholar Stipend,Awards Costs,Scholar,PIN048961,1116,
FCDO,CSC,28/09/2020,Scholar Stipend,Awards Costs,Scholar,PIN048962,1116,
FCDO,CSC,28/09/2020,Scholar Stipend,Awards Costs,Scholar,PIN048963,1116,
FCDO,CSC,28/09/2020,Scholar Stipend,Awards Costs,Scholar,PIN048964,1116,
FCDO,CSC,28/09/2020,Scholar Stipend,Awards Costs,Scholar,PIN048965,1116,
FCDO,CSC,28/09/2020,Scholar Stipend,Awards Costs,Scholar,PIN048966,1116,
FCDO,CSC,28/09/2020,Scholar Stipend,Awards Costs,Scholar,PIN048967,1116,
FCDO,CSC,28/09/2020,Scholar Stipend,Awards Costs,Scholar,PIN048968,558,
FCDO,CSC,28/09/2020,Scholar Stipend,Awards Costs,Scholar,PIN048969,1116,
FCDO,CSC,28/09/2020,Scholar Stipend,Awards Costs,Scholar,PIN048970,1116,
FCDO,CSC,28/09/2020,Scholar Stipend,Awards Costs,Scholar,PIN048971,1116,
FCDO,CSC,28/09/2020,Scholar Stipend,Awards Costs,Scholar,PIN048972,1116,
FCDO,CSC,28/09/2020,Scholar Stipend,Awards Costs,Scholar,PIN048973,1116,
FCDO,CSC,28/09/2020,Scholar Stipend,Awards Costs,Scholar,PIN048974,1116,
FCDO,CSC,28/09/2020,Scholar Stipend,Awards Costs,Scholar,PIN048975,1116,
FCDO,CSC,28/09/2020,Scholar Stipend,Awards Costs,Scholar,PIN048976,1116,
FCDO,CSC,28/09/2020,Scholar Stipend,Awards Costs,Scholar,PIN048978,1116,
FCDO,CSC,28/09/2020,Scholar Stipend,Awards Costs,Scholar,PIN048979,1116,
FCDO,CSC,28/09/2020,Scholar Stipend,Awards Costs,Scholar,PIN048980,1116,
FCDO,CSC,28/09/2020,Scholar Stipend,Awards Costs,Scholar,PIN048981,1369,
FCDO,CSC,28/09/2020,Scholar Stipend,Awards Costs,Scholar,PIN048982,1116,
FCDO,CSC,28/09/2020,Scholar Stipend,Awards Costs,Scholar,PIN048983,1116,
FCDO,CSC,28/09/2020,Scholar Stipend,Awards Costs,Scholar,PIN048984,1116,
FCDO,CSC,28/09/2020,Scholar Stipend,Awards Costs,Scholar,PIN048985,1369,
FCDO,CSC,28/09/2020,Scholar Stipend,Awards Costs,Scholar,PIN048986,1116,
FCDO,CSC,28/09/2020,Scholar Stipend,Awards Costs,Scholar,PIN048987,1116,
FCDO,CSC,28/09/2020,Scholar Stipend,Awards Costs,Scholar,PIN048988,1116,
FCDO,CSC,28/09/2020,Scholar Stipend,Awards Costs,Scholar,PIN048989,1116,
FCDO,CSC,28/09/2020,Scholar Stipend,Awards Costs,Scholar,PIN048990,1116,
FCDO,CSC,28/09/2020,Scholar Stipend,Awards Costs,Scholar,PIN048991,1116,
FCDO,CSC,28/09/2020,Scholar Stipend,Awards Costs,Scholar,PIN048992,1116,
FCDO,CSC,28/09/2020,Scholar Stipend,Awards Costs,Scholar,PIN048993,684.5,
FCDO,CSC,28/09/2020,Scholar Stipend,Awards Costs,Scholar,PIN048994,1116,
FCDO,CSC,28/09/2020,Scholar Stipend,Awards Costs,Scholar,PIN048995,1369,
FCDO,CSC,28/09/2020,Scholar Stipend,Awards Costs,Scholar,PIN048996,1116,
FCDO,CSC,28/09/2020,Scholar Stipend,Awards Costs,Scholar,PIN048997,1116,
FCDO,CSC,28/09/2020,Scholar Stipend,Awards Costs,Scholar,PIN048998,1116,
FCDO,CSC,28/09/2020,Scholar Stipend,Awards Costs,Scholar,PIN048999,1369,
FCDO,CSC,28/09/2020,Scholar Stipend,Awards Costs,Scholar,PIN049000,1116,
FCDO,CSC,28/09/2020,Scholar Stipend,Awards Costs,Scholar,PIN049001,1116,
FCDO,CSC,28/09/2020,Scholar Stipend,Awards Costs,Scholar,PIN049002,1116,
FCDO,CSC,28/09/2020,Scholar Stipend,Awards Costs,Scholar,PIN049004,1116,
FCDO,CSC,28/09/2020,Scholar Stipend,Awards Costs,Scholar,PIN049005,1116,
FCDO,CSC,28/09/2020,Scholar Stipend,Awards Costs,Scholar,PIN049006,1116,
FCDO,CSC,28/09/2020,Scholar Stipend,Awards Costs,Scholar,PIN049007,558,
FCDO,CSC,28/09/2020,Scholar Stipend,Awards Costs,Scholar,PIN049008,1116,
FCDO,CSC,28/09/2020,Scholar Stipend,Awards Costs,Scholar,PIN049009,1369,
FCDO,CSC,28/09/2020,Scholar Stipend,Awards Costs,Scholar,PIN049010,1116,
FCDO,CSC,28/09/2020,Scholar Stipend,Awards Costs,Scholar,PIN049011,1116,
FCDO,CSC,28/09/2020,Scholar Stipend,Awards Costs,Scholar,PIN049012,1116,
FCDO,CSC,28/09/2020,Scholar Stipend,Awards Costs,Scholar,PIN049013,1116,
FCDO,CSC,28/09/2020,Scholar Stipend,Awards Costs,Scholar,PIN049014,1116,
FCDO,CSC,28/09/2020,Scholar Stipend,Awards Costs,Scholar,PIN049015,1116,
FCDO,CSC,28/09/2020,Scholar Stipend,Awards Costs,Scholar,PIN049016,1116,
FCDO,CSC,28/09/2020,Scholar Stipend,Awards Costs,Scholar,PIN049018,1116,
FCDO,CSC,28/09/2020,Scholar Stipend,Awards Costs,Scholar,PIN049019,1369,
FCDO,CSC,28/09/2020,Scholar Stipend,Awards Costs,Scholar,PIN049020,1116,
FCDO,CSC,28/09/2020,Scholar Stipend,Awards Costs,Scholar,PIN049021,1116,
FCDO,CSC,28/09/2020,Scholar Stipend,Awards Costs,Scholar,PIN049022,1116,
FCDO,CSC,28/09/2020,Scholar Stipend,Awards Costs,Scholar,PIN049023,1116,
FCDO,CSC,28/09/2020,Scholar Stipend,Awards Costs,Scholar,PIN049024,1116,
FCDO,CSC,28/09/2020,Scholar Stipend,Awards Costs,Scholar,PIN049025,1116,
FCDO,CSC,28/09/2020,Scholar Stipend,Awards Costs,Scholar,PIN049026,1369,
FCDO,CSC,28/09/2020,Scholar Stipend,Awards Costs,Scholar,PIN049027,1116,
FCDO,CSC,28/09/2020,Scholar Stipend,Awards Costs,Scholar,PIN049028,1116,
FCDO,CSC,28/09/2020,Scholar Stipend,Awards Costs,Scholar,PIN049029,684.5,
FCDO,CSC,28/09/2020,Scholar Stipend,Awards Costs,Scholar,PIN049030,1369,
FCDO,CSC,28/09/2020,Scholar Stipend,Awards Costs,Scholar,PIN049031,1116,
FCDO,CSC,28/09/2020,Scholar Stipend,Awards Costs,Scholar,PIN049032,1116,
FCDO,CSC,28/09/2020,Scholar Stipend,Awards Costs,Scholar,PIN049033,1116,
FCDO,CSC,28/09/2020,Scholar Stipend,Awards Costs,Scholar,PIN049034,1116,
FCDO,CSC,28/09/2020,Scholar Stipend,Awards Costs,Scholar,PIN049035,1116,
FCDO,CSC,28/09/2020,Scholar Stipend,Awards Costs,Scholar,PIN049036,1116,
FCDO,CSC,28/09/2020,Scholar Stipend,Awards Costs,Scholar,PIN049037,1116,
FCDO,CSC,28/09/2020,Scholar Stipend,Awards Costs,Scholar,PIN049038,1369,
FCDO,CSC,28/09/2020,Scholar Stipend,Awards Costs,Scholar,PIN049039,1116,
FCDO,CSC,28/09/2020,Scholar Stipend,Awards Costs,Scholar,PIN049040,1116,
FCDO,CSC,28/09/2020,Scholar Stipend,Awards Costs,Scholar,PIN049041,1116,
FCDO,CSC,28/09/2020,Scholar Stipend,Awards Costs,Scholar,PIN049042,1116,
FCDO,CSC,28/09/2020,Scholar Stipend,Awards Costs,Scholar,PIN049043,1116,
FCDO,CSC,28/09/2020,Scholar Stipend,Awards Costs,Scholar,PIN049044,1116,
FCDO,CSC,28/09/2020,Scholar Stipend,Awards Costs,Scholar,PIN049045,1369,
FCDO,CSC,28/09/2020,Scholar Stipend,Awards Costs,Scholar,PIN049046,1116,
FCDO,CSC,28/09/2020,Scholar Stipend,Awards Costs,Scholar,PIN049047,684.5,
FCDO,CSC,28/09/2020,Scholar Stipend,Programme Costs,Scholar,PIN049048,1116,
FCDO,CSC,28/09/2020,Scholar Stipend,Awards Costs,Scholar,PIN049049,1116,
FCDO,CSC,28/09/2020,Scholar Stipend,Awards Costs,Scholar,PIN049050,1369,
FCDO,CSC,28/09/2020,Scholar Stipend,Awards Costs,Scholar,PIN049051,1116,
FCDO,CSC,28/09/2020,Scholar Stipend,Awards Costs,Scholar,PIN049052,1116,
FCDO,CSC,28/09/2020,Scholar Stipend,Awards Costs,Scholar,PIN049053,1116,
FCDO,CSC,28/09/2020,Scholar Stipend,Awards Costs,Scholar,PIN049054,1116,
FCDO,CSC,28/09/2020,Scholar Stipend,Awards Costs,Scholar,PIN049055,1116,
FCDO,CSC,28/09/2020,Scholar Stipend,Awards Costs,Scholar,PIN049056,1116,
FCDO,CSC,28/09/2020,Scholar Stipend,Awards Costs,Scholar,PIN049057,1116,
FCDO,CSC,28/09/2020,Scholar Stipend,Awards Costs,Scholar,PIN049058,1369,
FCDO,CSC,28/09/2020,Scholar Stipend,Awards Costs,Scholar,PIN049059,1369,
FCDO,CSC,28/09/2020,Scholar Stipend,Awards Costs,Scholar,PIN049060,558,
FCDO,CSC,28/09/2020,Scholar Stipend,Awards Costs,Scholar,PIN049061,1116,
FCDO,CSC,28/09/2020,Scholar Stipend,Awards Costs,Scholar,PIN049062,1116,
FCDO,CSC,28/09/2020,Scholar Stipend,Awards Costs,Scholar,PIN049063,1116,
FCDO,CSC,28/09/2020,Scholar Stipend,Awards Costs,Scholar,PIN049064,684.5,
FCDO,CSC,28/09/2020,Scholar Stipend,Awards Costs,Scholar,PIN049065,1116,
FCDO,CSC,28/09/2020,Scholar Stipend,Awards Costs,Scholar,PIN049066,1116,
FCDO,CSC,28/09/2020,Scholar Stipend,Awards Costs,Scholar,PIN049067,1116,
FCDO,CSC,28/09/2020,Scholar Stipend,Awards Costs,Scholar,PIN049068,1116,
FCDO,CSC,28/09/2020,Scholar Stipend,Awards Costs,Scholar,PIN049069,1116,
FCDO,CSC,28/09/2020,Scholar Stipend,Awards Costs,Scholar,PIN049070,1369,
FCDO,CSC,28/09/2020,Scholar Stipend,Awards Costs,Scholar,PIN049071,1116,
FCDO,CSC,28/09/2020,Scholar Stipend,Awards Costs,Scholar,PIN049072,1369,
FCDO,CSC,28/09/2020,Scholar Stipend,Awards Costs,Scholar,PIN049073,1116,
FCDO,CSC,28/09/2020,Scholar Stipend,Awards Costs,Scholar,PIN049074,1116,
FCDO,CSC,28/09/2020,Scholar Stipend,Awards Costs,Scholar,PIN049075,1116,
FCDO,CSC,28/09/2020,Scholar Stipend,Awards Costs,Scholar,PIN049076,1116,
FCDO,CSC,28/09/2020,Scholar Stipend,Awards Costs,Scholar,PIN049077,1116,
FCDO,CSC,28/09/2020,Scholar Stipend,Awards Costs,Scholar,PIN049078,1116,
FCDO,CSC,28/09/2020,Scholar Stipend,Awards Costs,Scholar,PIN049079,1116,
FCDO,CSC,28/09/2020,Scholar Stipend,Awards Costs,Scholar,PIN049080,1369,
FCDO,CSC,28/09/2020,Scholar Stipend,Awards Costs,Scholar,PIN049081,1116,
FCDO,CSC,28/09/2020,Scholar Stipend,Awards Costs,Scholar,PIN049082,1116,
FCDO,CSC,28/09/2020,Scholar Stipend,Awards Costs,Scholar,PIN049083,1116,
FCDO,CSC,28/09/2020,Scholar Stipend,Awards Costs,Scholar,PIN049084,1116,
FCDO,CSC,28/09/2020,Scholar Stipend,Awards Costs,Scholar,PIN049085,1116,
FCDO,CSC,28/09/2020,Scholar Stipend,Awards Costs,Scholar,PIN049086,1116,
FCDO,CSC,28/09/2020,Scholar Stipend,Awards Costs,Scholar,PIN049087,1369,
FCDO,CSC,28/09/2020,Scholar Stipend,Awards Costs,Scholar,PIN049088,1369,
FCDO,CSC,28/09/2020,Scholar Stipend,Awards Costs,Scholar,PIN049089,1116,
FCDO,CSC,28/09/2020,Scholar Stipend,Awards Costs,Scholar,PIN049090,1116,
FCDO,CSC,28/09/2020,Scholar Stipend,Awards Costs,Scholar,PIN049091,1369,
FCDO,CSC,28/09/2020,Scholar Stipend,Awards Costs,Scholar,PIN049092,1116,
FCDO,CSC,28/09/2020,Scholar Stipend,Awards Costs,Scholar,PIN049093,1116,
FCDO,CSC,28/09/2020,Scholar Stipend,Awards Costs,Scholar,PIN049094,1116,
FCDO,CSC,28/09/2020,Scholar Stipend,Awards Costs,Scholar,PIN049095,1369,
FCDO,CSC,28/09/2020,Scholar Stipend,Awards Costs,Scholar,PIN049096,1116,
FCDO,CSC,28/09/2020,Scholar Stipend,Awards Costs,Scholar,PIN049097,1116,
FCDO,CSC,28/09/2020,Scholar Stipend,Awards Costs,Scholar,PIN049098,1116,
FCDO,CSC,28/09/2020,Scholar Stipend,Awards Costs,Scholar,PIN049099,1369,
FCDO,CSC,28/09/2020,Scholar Stipend,Awards Costs,Scholar,PIN049100,1116,
FCDO,CSC,28/09/2020,Scholar Stipend,Awards Costs,Scholar,PIN049101,1116,
FCDO,CSC,28/09/2020,Scholar Stipend,Awards Costs,Scholar,PIN049102,558,
FCDO,CSC,28/09/2020,Scholar Stipend,Awards Costs,Scholar,PIN049103,1116,
FCDO,CSC,28/09/2020,Scholar Stipend,Awards Costs,Scholar,PIN049104,1116,
FCDO,CSC,28/09/2020,Scholar Stipend,Awards Costs,Scholar,PIN049105,1116,
FCDO,CSC,28/09/2020,Scholar Stipend,Awards Costs,Scholar,PIN049106,1116,
FCDO,CSC,28/09/2020,Scholar Stipend,Awards Costs,Scholar,PIN049107,1063.29,
FCDO,CSC,28/09/2020,Scholar Stipend,Awards Costs,Scholar,PIN049108,558,
FCDO,CSC,28/09/2020,Scholar Stipend,Awards Costs,Scholar,PIN049109,1116,
FCDO,CSC,28/09/2020,Scholar Stipend,Awards Costs,Scholar,PIN049110,1369,
FCDO,CSC,28/09/2020,Scholar Stipend,Awards Costs,Scholar,PIN049112,1116,
FCDO,CSC,28/09/2020,Scholar Stipend,Awards Costs,Scholar,PIN049113,1116,
FCDO,CSC,28/09/2020,Scholar Stipend,Awards Costs,Scholar,PIN049114,1116,
FCDO,CSC,28/09/2020,Scholar Stipend,Awards Costs,Scholar,PIN049115,558,
FCDO,CSC,28/09/2020,Scholar Stipend,Awards Costs,Scholar,PIN049116,1116,
FCDO,CSC,28/09/2020,Scholar Stipend,Awards Costs,Scholar,PIN049117,1116,
FCDO,CSC,28/09/2020,Scholar Stipend,Awards Costs,Scholar,PIN049118,1369,
FCDO,CSC,28/09/2020,Scholar Stipend,Awards Costs,Scholar,PIN049119,1116,
FCDO,CSC,28/09/2020,Scholar Stipend,Awards Costs,Scholar,PIN049120,1116,
FCDO,CSC,28/09/2020,Scholar Stipend,Awards Costs,Scholar,PIN049121,1116,
FCDO,CSC,28/09/2020,Scholar Stipend,Awards Costs,Scholar,PIN049122,1116,
FCDO,CSC,28/09/2020,Scholar Stipend,Awards Costs,Scholar,PIN049123,1116,
FCDO,CSC,28/09/2020,Scholar Stipend,Awards Costs,Scholar,PIN049124,1063.29,
FCDO,CSC,28/09/2020,Scholar Stipend,Awards Costs,Scholar,PIN049125,1116,
FCDO,CSC,28/09/2020,Scholar Stipend,Awards Costs,Scholar,PIN049126,1369,
FCDO,CSC,28/09/2020,Scholar Stipend,Awards Costs,Scholar,PIN049127,1116,
FCDO,CSC,28/09/2020,Scholar Stipend,Awards Costs,Scholar,PIN049128,1116,
FCDO,CSC,28/09/2020,Scholar Stipend,Awards Costs,Scholar,PIN049129,1116,
FCDO,CSC,28/09/2020,Scholar Stipend,Awards Costs,Scholar,PIN049130,1369,
FCDO,CSC,28/09/2020,Scholar Stipend,Awards Costs,Scholar,PIN049131,1116,
FCDO,CSC,28/09/2020,Scholar Stipend,Awards Costs,Scholar,PIN049132,1116,
FCDO,CSC,28/09/2020,Scholar Stipend,Awards Costs,Scholar,PIN049133,1116,
FCDO,CSC,28/09/2020,Scholar Stipend,Awards Costs,Scholar,PIN049134,1116,
FCDO,CSC,28/09/2020,Scholar Stipend,Awards Costs,Scholar,PIN049135,1369,
FCDO,CSC,28/09/2020,Scholar Stipend,Awards Costs,Scholar,PIN049136,1116,
FCDO,CSC,28/09/2020,Scholar Stipend,Awards Costs,Scholar,PIN049137,1116,
FCDO,CSC,28/09/2020,Scholar Stipend,Awards Costs,Scholar,PIN049138,1369,
FCDO,CSC,28/09/2020,Scholar Stipend,Awards Costs,Scholar,PIN049139,1116,
FCDO,CSC,28/09/2020,Scholar Stipend,Awards Costs,Scholar,PIN049140,1116,
FCDO,CSC,28/09/2020,Scholar Stipend,Awards Costs,Scholar,PIN049141,558,
FCDO,CSC,28/09/2020,Scholar Stipend,Awards Costs,Scholar,PIN049142,1369,
FCDO,CSC,28/09/2020,Scholar Stipend,Awards Costs,Scholar,PIN049143,1116,
FCDO,CSC,28/09/2020,Scholar Stipend,Awards Costs,Scholar,PIN049144,1369,
FCDO,CSC,28/09/2020,Scholar Stipend,Awards Costs,Scholar,PIN049145,1116,
FCDO,CSC,28/09/2020,Scholar Stipend,Awards Costs,Scholar,PIN049146,1369,
FCDO,CSC,28/09/2020,Scholar Stipend,Awards Costs,Scholar,PIN049147,1116,
FCDO,CSC,28/09/2020,Scholar Stipend,Awards Costs,Scholar,PIN049148,1116,
FCDO,CSC,28/09/2020,Scholar Stipend,Awards Costs,Scholar,PIN049149,1369,
FCDO,CSC,28/09/2020,Scholar Stipend,Awards Costs,Scholar,PIN049150,1116,
FCDO,CSC,28/09/2020,Scholar Stipend,Awards Costs,Scholar,PIN049151,1369,
FCDO,CSC,28/09/2020,Scholar Stipend,Awards Costs,Scholar,PIN049152,1116,
FCDO,CSC,28/09/2020,Scholar Stipend,Awards Costs,Scholar,PIN049153,1116,
FCDO,CSC,28/09/2020,Scholar Stipend,Awards Costs,Scholar,PIN049154,1116,
FCDO,CSC,28/09/2020,Scholar Stipend,Awards Costs,Scholar,PIN049155,1116,
FCDO,CSC,28/09/2020,Scholar Stipend,Awards Costs,Scholar,PIN049156,1116,
FCDO,CSC,28/09/2020,Scholar Stipend,Awards Costs,Scholar,PIN049157,1116,
FCDO,CSC,28/09/2020,Scholar Stipend,Awards Costs,Scholar,PIN049158,1369,
FCDO,CSC,28/09/2020,Scholar Stipend,Awards Costs,Scholar,PIN049159,1116,
FCDO,CSC,28/09/2020,Scholar Stipend,Awards Costs,Scholar,PIN049160,1369,
FCDO,CSC,28/09/2020,Scholar Stipend,Awards Costs,Scholar,PIN049161,1116,
FCDO,CSC,28/09/2020,Scholar Stipend,Awards Costs,Scholar,PIN049162,1116,
FCDO,CSC,28/09/2020,Scholar Stipend,Awards Costs,Scholar,PIN049163,1116,
FCDO,CSC,28/09/2020,Scholar Stipend,Awards Costs,Scholar,PIN049164,1116,
FCDO,CSC,28/09/2020,Scholar Stipend,Awards Costs,Scholar,PIN049165,1116,
FCDO,CSC,28/09/2020,Scholar Stipend,Awards Costs,Scholar,PIN049166,1369,
FCDO,CSC,28/09/2020,Scholar Stipend,Awards Costs,Scholar,PIN049168,1116,
FCDO,CSC,28/09/2020,Scholar Stipend,Awards Costs,Scholar,PIN049169,1116,
FCDO,CSC,28/09/2020,Scholar Stipend,Awards Costs,Scholar,PIN049170,1369,
FCDO,CSC,28/09/2020,Scholar Stipend,Awards Costs,Scholar,PIN049171,1116,
FCDO,CSC,28/09/2020,Scholar Stipend,Awards Costs,Scholar,PIN049172,1116,
FCDO,CSC,28/09/2020,Scholar Stipend,Awards Costs,Scholar,PIN049173,1304.04,
FCDO,CSC,28/09/2020,Scholar Stipend,Awards Costs,Scholar,PIN049174,1116,
FCDO,CSC,28/09/2020,Scholar Stipend,Awards Costs,Scholar,PIN049175,1116,
FCDO,CSC,28/09/2020,Scholar Stipend,Awards Costs,Scholar,PIN049176,1116,
FCDO,CSC,28/09/2020,Scholar Stipend,Awards Costs,Scholar,PIN049177,1116,
FCDO,CSC,28/09/2020,Scholar Stipend,Awards Costs,Scholar,PIN049178,1116,
FCDO,CSC,28/09/2020,Scholar Stipend,Awards Costs,Scholar,PIN049179,1116,
FCDO,CSC,28/09/2020,Scholar Stipend,Awards Costs,Scholar,PIN049180,1116,
FCDO,CSC,28/09/2020,Scholar Stipend,Awards Costs,Scholar,PIN049181,1116,
FCDO,CSC,28/09/2020,Scholar Stipend,Awards Costs,Scholar,PIN049182,1116,
FCDO,CSC,28/09/2020,Scholar Stipend,Awards Costs,Scholar,PIN049183,1116,
FCDO,CSC,28/09/2020,Scholar Stipend,Awards Costs,Scholar,PIN049184,1116,
FCDO,CSC,28/09/2020,Scholar Stipend,Awards Costs,Scholar,PIN049185,1116,
FCDO,CSC,28/09/2020,Scholar Allowances,Awards Costs,Scholar,PIN049190,596,
FCDO,CSC,28/09/2020,Scholar Allowances,Awards Costs,Scholar,PIN049212,714,
FCDO,CSC,28/09/2020,Scholar Stipend,Awards Costs,Scholar,PIN049302,549.97,
FCDO,CSC,28/09/2020,Scholar Stipend,Awards Costs,Scholar,PIN049303,531.64,
FCDO,CSC,28/09/2020,Scholar Allowances,Awards Costs,Scholar,PIN049305,1560,
FCDO,CSC,28/09/2020,Scholar Stipend,Awards Costs,Scholar,PIN049308,1116,
FCDO,CSC,28/09/2020,Scholar Stipend,Awards Costs,Scholar,PIN049309,1369,
FCDO,CSC,28/09/2020,Scholar Stipend,Awards Costs,Scholar,PIN049310,1116,
FCDO,CSC,28/09/2020,Scholar Stipend,Awards Costs,Scholar,PIN049311,1116,
FCDO,CSC,28/09/2020,Scholar Stipend,Awards Costs,Scholar,PIN049312,1116,
FCDO,CSC,28/09/2020,Scholar Stipend,Awards Costs,Scholar,PIN049313,1116,
FCDO,CSC,28/09/2020,Scholar Stipend,Awards Costs,Scholar,PIN049314,1369,
FCDO,CSC,28/09/2020,Scholar Stipend,Awards Costs,Scholar,PIN049315,1116,
FCDO,CSC,28/09/2020,Scholar Stipend,Awards Costs,Scholar,PIN049316,1116,
FCDO,CSC,28/09/2020,Scholar Stipend,Awards Costs,Scholar,PIN049317,558,
FCDO,CSC,28/09/2020,Scholar Stipend,Awards Costs,Scholar,PIN049318,684.5,
FCDO,CSC,28/09/2020,Scholar Stipend,Awards Costs,Scholar,PIN049319,1116,
FCDO,CSC,28/09/2020,Scholar Stipend,Awards Costs,Scholar,PIN049320,1116,
FCDO,CSC,28/09/2020,Scholar Stipend,Awards Costs,Scholar,PIN049321,1369,
FCDO,CSC,28/09/2020,Scholar Stipend,Awards Costs,Scholar,PIN049322,1369,
FCDO,CSC,28/09/2020,Scholar Stipend,Awards Costs,Scholar,PIN049323,1116,
FCDO,CSC,28/09/2020,Scholar Stipend,Awards Costs,Scholar,PIN049325,1116,
FCDO,CSC,28/09/2020,Scholar Stipend,Awards Costs,Scholar,PIN049326,1116,
FCDO,CSC,28/09/2020,Scholar Stipend,Awards Costs,Scholar,PIN049327,1116,
FCDO,CSC,28/09/2020,Scholar Stipend,Awards Costs,Scholar,PIN049328,1116,
FCDO,CSC,28/09/2020,Scholar Stipend,Awards Costs,Scholar,PIN049329,1116,
FCDO,CSC,28/09/2020,Scholar Stipend,Awards Costs,Scholar,PIN049330,1116,
FCDO,CSC,28/09/2020,Scholar Stipend,Awards Costs,Scholar,PIN049331,1116,
FCDO,CSC,28/09/2020,Scholar Stipend,Awards Costs,Scholar,PIN049332,513.31,
FCDO,CSC,28/09/2020,Scholar Stipend,Awards Costs,Scholar,PIN049333,1116,
FCDO,CSC,28/09/2020,Scholar Stipend,Awards Costs,Scholar,PIN049334,1116,
FCDO,CSC,28/09/2020,Scholar Stipend,Awards Costs,Scholar,PIN049335,1116,
FCDO,CSC,28/09/2020,Scholar Stipend,Awards Costs,Scholar,PIN049336,1116,
FCDO,CSC,28/09/2020,Scholar Stipend,Awards Costs,Scholar,PIN049337,1116,
FCDO,CSC,28/09/2020,Scholar Stipend,Awards Costs,Scholar,PIN049338,1116,
FCDO,CSC,28/09/2020,Scholar Stipend,Awards Costs,Scholar,PIN049339,1116,
FCDO,CSC,28/09/2020,Scholar Stipend,Awards Costs,Scholar,PIN049340,1116,
FCDO,CSC,28/09/2020,Scholar Stipend,Awards Costs,Scholar,PIN049341,1116,
FCDO,CSC,28/09/2020,Scholar Stipend,Awards Costs,Scholar,PIN049342,1369,
FCDO,CSC,28/09/2020,Scholar Stipend,Awards Costs,Scholar,PIN049343,1116,
FCDO,CSC,28/09/2020,Scholar Stipend,Awards Costs,Scholar,PIN049344,1116,
FCDO,CSC,28/09/2020,Scholar Stipend,Awards Costs,Scholar,PIN049345,1116,
FCDO,CSC,28/09/2020,Scholar Stipend,Awards Costs,Scholar,PIN049346,1116,
FCDO,CSC,28/09/2020,Scholar Stipend,Awards Costs,Scholar,PIN049347,1116,
FCDO,CSC,28/09/2020,Scholar Stipend,Awards Costs,Scholar,PIN049348,1116,
FCDO,CSC,28/09/2020,Scholar Stipend,Awards Costs,Scholar,PIN049349,1116,
FCDO,CSC,28/09/2020,Scholar Stipend,Awards Costs,Scholar,PIN049350,1116,
FCDO,CSC,28/09/2020,Scholar Stipend,Awards Costs,Scholar,PIN049351,684.5,
FCDO,CSC,28/09/2020,Scholar Stipend,Awards Costs,Scholar,PIN049352,1116,
FCDO,CSC,28/09/2020,Scholar Stipend,Awards Costs,Scholar,PIN049353,1369,
FCDO,CSC,28/09/2020,Scholar Stipend,Awards Costs,Scholar,PIN049354,1116,
FCDO,CSC,28/09/2020,Scholar Stipend,Awards Costs,Scholar,PIN049355,1116,
FCDO,CSC,28/09/2020,Scholar Stipend,Awards Costs,Scholar,PIN049356,1116,
FCDO,CSC,28/09/2020,Scholar Stipend,Awards Costs,Scholar,PIN049357,1369,
FCDO,CSC,28/09/2020,Scholar Stipend,Awards Costs,Scholar,PIN049358,1116,
FCDO,CSC,28/09/2020,Scholar Stipend,Awards Costs,Scholar,PIN049359,558,
FCDO,CSC,28/09/2020,Scholar Stipend,Awards Costs,Scholar,PIN049360,1116,
FCDO,CSC,28/09/2020,Scholar Stipend,Awards Costs,Scholar,PIN049361,1116,
FCDO,CSC,28/09/2020,Scholar Stipend,Awards Costs,Scholar,PIN049362,1116,
FCDO,CSC,28/09/2020,Scholar Stipend,Awards Costs,Scholar,PIN049363,558,
FCDO,CSC,28/09/2020,Scholar Stipend,Awards Costs,Scholar,PIN049364,1116,
FCDO,CSC,28/09/2020,Scholar Stipend,Awards Costs,Scholar,PIN049365,1369,
FCDO,CSC,28/09/2020,Scholar Stipend,Awards Costs,Scholar,PIN049366,1116,
FCDO,CSC,28/09/2020,Scholar Stipend,Awards Costs,Scholar,PIN049367,1116,
FCDO,CSC,28/09/2020,Scholar Stipend,Awards Costs,Scholar,PIN049368,1116,
FCDO,CSC,28/09/2020,Scholar Stipend,Awards Costs,Scholar,PIN049369,1116,
FCDO,CSC,28/09/2020,Scholar Stipend,Awards Costs,Scholar,PIN049370,1116,
FCDO,CSC,28/09/2020,Scholar Stipend,Awards Costs,Scholar,PIN049371,1116,
FCDO,CSC,28/09/2020,Scholar Stipend,Awards Costs,Scholar,PIN049372,1369,
FCDO,CSC,28/09/2020,Scholar Stipend,Awards Costs,Scholar,PIN049373,1116,
FCDO,CSC,28/09/2020,Scholar Stipend,Awards Costs,Scholar,PIN049374,1116,
FCDO,CSC,28/09/2020,Scholar Stipend,Awards Costs,Scholar,PIN049375,1116,
FCDO,CSC,28/09/2020,Scholar Stipend,Awards Costs,Scholar,PIN049376,1116,
FCDO,CSC,28/09/2020,Scholar Stipend,Awards Costs,Scholar,PIN049377,1116,
FCDO,CSC,28/09/2020,Scholar Stipend,Awards Costs,Scholar,PIN049378,1116,
FCDO,CSC,28/09/2020,Scholar Stipend,Awards Costs,Scholar,PIN049379,1369,
FCDO,CSC,28/09/2020,Scholar Stipend,Awards Costs,Scholar,PIN049380,684.5,
FCDO,CSC,28/09/2020,Scholar Stipend,Awards Costs,Scholar,PIN049381,1369,
FCDO,CSC,28/09/2020,Scholar Stipend,Awards Costs,Scholar,PIN049382,1116,
FCDO,CSC,28/09/2020,Scholar Stipend,Awards Costs,Scholar,PIN049383,1116,
FCDO,CSC,28/09/2020,Scholar Stipend,Awards Costs,Scholar,PIN049384,1116,
FCDO,CSC,28/09/2020,Scholar Stipend,Awards Costs,Scholar,PIN049385,1116,
FCDO,CSC,28/09/2020,Scholar Stipend,Awards Costs,Scholar,PIN049386,1116,
FCDO,CSC,28/09/2020,Scholar Stipend,Awards Costs,Scholar,PIN049387,1369,
FCDO,CSC,28/09/2020,Scholar Stipend,Awards Costs,Scholar,PIN049388,1116,
FCDO,CSC,28/09/2020,Scholar Stipend,Awards Costs,Scholar,PIN049389,1116,
FCDO,CSC,28/09/2020,Scholar Stipend,Awards Costs,Scholar,PIN049390,1116,
FCDO,CSC,28/09/2020,Scholar Stipend,Awards Costs,Scholar,PIN049391,1116,
FCDO,CSC,28/09/2020,Scholar Stipend,Awards Costs,Scholar,PIN049392,1369,
FCDO,CSC,28/09/2020,Scholar Stipend,Awards Costs,Scholar,PIN049393,1116,
FCDO,CSC,28/09/2020,Scholar Stipend,Awards Costs,Scholar,PIN049394,684.5,
FCDO,CSC,28/09/2020,Scholar Stipend,Programme Costs,Scholar,PIN049395,1116,
FCDO,CSC,28/09/2020,Scholar Stipend,Awards Costs,Scholar,PIN049396,1116,
FCDO,CSC,28/09/2020,Scholar Stipend,Awards Costs,Scholar,PIN049397,1116,
FCDO,CSC,28/09/2020,Scholar Stipend,Awards Costs,Scholar,PIN049398,1116,
FCDO,CSC,28/09/2020,Scholar Stipend,Awards Costs,Scholar,PIN049399,1116,
FCDO,CSC,28/09/2020,Scholar Stipend,Awards Costs,Scholar,PIN049400,1116,
FCDO,CSC,28/09/2020,Scholar Stipend,Awards Costs,Scholar,PIN049401,1116,
FCDO,CSC,28/09/2020,Scholar Stipend,Awards Costs,Scholar,PIN049402,1369,
FCDO,CSC,28/09/2020,Scholar Stipend,Awards Costs,Scholar,PIN049403,558,
FCDO,CSC,28/09/2020,Scholar Stipend,Awards Costs,Scholar,PIN049404,1116,
FCDO,CSC,28/09/2020,Scholar Stipend,Awards Costs,Scholar,PIN049405,1116,
FCDO,CSC,28/09/2020,Scholar Stipend,Awards Costs,Scholar,PIN049406,1116,
FCDO,CSC,28/09/2020,Scholar Stipend,Awards Costs,Scholar,PIN049407,684.5,
FCDO,CSC,28/09/2020,Scholar Stipend,Awards Costs,Scholar,PIN049408,1116,
FCDO,CSC,28/09/2020,Scholar Stipend,Awards Costs,Scholar,PIN049409,1116,
FCDO,CSC,28/09/2020,Scholar Stipend,Awards Costs,Scholar,PIN049410,1116,
FCDO,CSC,28/09/2020,Scholar Stipend,Awards Costs,Scholar,PIN049411,1116,
FCDO,CSC,28/09/2020,Scholar Stipend,Awards Costs,Scholar,PIN049412,1369,
FCDO,CSC,28/09/2020,Scholar Stipend,Awards Costs,Scholar,PIN049413,1116,
FCDO,CSC,28/09/2020,Scholar Stipend,Awards Costs,Scholar,PIN049414,1116,
FCDO,CSC,28/09/2020,Scholar Stipend,Awards Costs,Scholar,PIN049415,1116,
FCDO,CSC,28/09/2020,Scholar Stipend,Awards Costs,Scholar,PIN049416,1116,
FCDO,CSC,28/09/2020,Scholar Stipend,Awards Costs,Scholar,PIN049417,1116,
FCDO,CSC,28/09/2020,Scholar Stipend,Awards Costs,Scholar,PIN049418,1116,
FCDO,CSC,28/09/2020,Scholar Stipend,Awards Costs,Scholar,PIN049419,1116,
FCDO,CSC,28/09/2020,Scholar Stipend,Awards Costs,Scholar,PIN049420,1116,
FCDO,CSC,28/09/2020,Scholar Stipend,Awards Costs,Scholar,PIN049421,1116,
FCDO,CSC,28/09/2020,Scholar Stipend,Awards Costs,Scholar,PIN049422,1369,
FCDO,CSC,28/09/2020,Scholar Stipend,Awards Costs,Scholar,PIN049423,1369,
FCDO,CSC,28/09/2020,Scholar Stipend,Awards Costs,Scholar,PIN049424,1116,
FCDO,CSC,28/09/2020,Scholar Stipend,Awards Costs,Scholar,PIN049425,1116,
FCDO,CSC,28/09/2020,Scholar Stipend,Awards Costs,Scholar,PIN049426,1369,
FCDO,CSC,28/09/2020,Scholar Stipend,Awards Costs,Scholar,PIN049427,1116,
FCDO,CSC,28/09/2020,Scholar Stipend,Awards Costs,Scholar,PIN049428,1116,
FCDO,CSC,28/09/2020,Scholar Stipend,Awards Costs,Scholar,PIN049429,1116,
FCDO,CSC,28/09/2020,Scholar Stipend,Awards Costs,Scholar,PIN049430,558,
FCDO,CSC,28/09/2020,Scholar Stipend,Awards Costs,Scholar,PIN049431,1116,
FCDO,CSC,28/09/2020,Scholar Stipend,Awards Costs,Scholar,PIN049432,1116,
FCDO,CSC,28/09/2020,Scholar Stipend,Awards Costs,Scholar,PIN049433,1116,
FCDO,CSC,28/09/2020,Scholar Stipend,Awards Costs,Scholar,PIN049434,1116,
FCDO,CSC,28/09/2020,Scholar Stipend,Awards Costs,Scholar,PIN049435,558,
FCDO,CSC,28/09/2020,Scholar Stipend,Awards Costs,Scholar,PIN049436,558,
FCDO,CSC,28/09/2020,Scholar Stipend,Awards Costs,Scholar,PIN049437,1116,
FCDO,CSC,28/09/2020,Scholar Stipend,Awards Costs,Scholar,PIN049438,1116,
FCDO,CSC,28/09/2020,Scholar Stipend,Awards Costs,Scholar,PIN049439,1116,
FCDO,CSC,28/09/2020,Scholar Stipend,Awards Costs,Scholar,PIN049440,558,
FCDO,CSC,28/09/2020,Scholar Stipend,Awards Costs,Scholar,PIN049441,1116,
FCDO,CSC,28/09/2020,Scholar Stipend,Awards Costs,Scholar,PIN049442,1369,
FCDO,CSC,28/09/2020,Scholar Stipend,Awards Costs,Scholar,PIN049443,1116,
FCDO,CSC,28/09/2020,Scholar Stipend,Awards Costs,Scholar,PIN049444,1116,
FCDO,CSC,28/09/2020,Scholar Stipend,Awards Costs,Scholar,PIN049445,1116,
FCDO,CSC,28/09/2020,Scholar Stipend,Awards Costs,Scholar,PIN049446,1116,
FCDO,CSC,28/09/2020,Scholar Stipend,Awards Costs,Scholar,PIN049447,1116,
FCDO,CSC,28/09/2020,Scholar Stipend,Awards Costs,Scholar,PIN049448,1116,
FCDO,CSC,28/09/2020,Scholar Stipend,Awards Costs,Scholar,PIN049449,1369,
FCDO,CSC,28/09/2020,Scholar Stipend,Awards Costs,Scholar,PIN049450,1116,
FCDO,CSC,28/09/2020,Scholar Stipend,Awards Costs,Scholar,PIN049451,1116,
FCDO,CSC,28/09/2020,Scholar Stipend,Awards Costs,Scholar,PIN049452,1116,
FCDO,CSC,28/09/2020,Scholar Stipend,Awards Costs,Scholar,PIN049453,1369,
FCDO,CSC,28/09/2020,Scholar Stipend,Awards Costs,Scholar,PIN049454,1116,
FCDO,CSC,28/09/2020,Scholar Stipend,Awards Costs,Scholar,PIN049455,1116,
FCDO,CSC,28/09/2020,Scholar Stipend,Awards Costs,Scholar,PIN049456,1116,
FCDO,CSC,28/09/2020,Scholar Stipend,Awards Costs,Scholar,PIN049457,1116,
FCDO,CSC,28/09/2020,Scholar Stipend,Awards Costs,Scholar,PIN049458,1369,
FCDO,CSC,28/09/2020,Scholar Stipend,Awards Costs,Scholar,PIN049459,1116,
FCDO,CSC,28/09/2020,Scholar Stipend,Awards Costs,Scholar,PIN049460,1116,
FCDO,CSC,28/09/2020,Scholar Stipend,Awards Costs,Scholar,PIN049461,1369,
FCDO,CSC,28/09/2020,Scholar Stipend,Awards Costs,Scholar,PIN049462,1116,
FCDO,CSC,28/09/2020,Scholar Stipend,Awards Costs,Scholar,PIN049463,558,
FCDO,CSC,28/09/2020,Scholar Stipend,Awards Costs,Scholar,PIN049464,1369,
FCDO,CSC,28/09/2020,Scholar Stipend,Awards Costs,Scholar,PIN049465,1116,
FCDO,CSC,28/09/2020,Scholar Stipend,Awards Costs,Scholar,PIN049466,1369,
FCDO,CSC,28/09/2020,Scholar Stipend,Awards Costs,Scholar,PIN049467,1116,
FCDO,CSC,28/09/2020,Scholar Stipend,Awards Costs,Scholar,PIN049468,1369,
FCDO,CSC,28/09/2020,Scholar Stipend,Awards Costs,Scholar,PIN049469,1116,
FCDO,CSC,28/09/2020,Scholar Stipend,Awards Costs,Scholar,PIN049470,1116,
FCDO,CSC,28/09/2020,Scholar Stipend,Awards Costs,Scholar,PIN049471,1369,
FCDO,CSC,28/09/2020,Scholar Stipend,Awards Costs,Scholar,PIN049472,1116,
FCDO,CSC,28/09/2020,Scholar Stipend,Awards Costs,Scholar,PIN049473,1369,
FCDO,CSC,28/09/2020,Scholar Stipend,Awards Costs,Scholar,PIN049474,1116,
FCDO,CSC,28/09/2020,Scholar Stipend,Awards Costs,Scholar,PIN049475,1116,
FCDO,CSC,28/09/2020,Scholar Stipend,Awards Costs,Scholar,PIN049476,1116,
FCDO,CSC,28/09/2020,Scholar Stipend,Awards Costs,Scholar,PIN049477,1116,
FCDO,CSC,28/09/2020,Scholar Stipend,Awards Costs,Scholar,PIN049478,1116,
FCDO,CSC,28/09/2020,Scholar Stipend,Awards Costs,Scholar,PIN049479,1116,
FCDO,CSC,28/09/2020,Scholar Stipend,Awards Costs,Scholar,PIN049480,1369,
FCDO,CSC,28/09/2020,Scholar Stipend,Awards Costs,Scholar,PIN049481,1116,
FCDO,CSC,28/09/2020,Scholar Stipend,Awards Costs,Scholar,PIN049482,1369,
FCDO,CSC,28/09/2020,Scholar Stipend,Awards Costs,Scholar,PIN049483,1116,
FCDO,CSC,28/09/2020,Scholar Stipend,Awards Costs,Scholar,PIN049484,1116,
FCDO,CSC,28/09/2020,Scholar Stipend,Awards Costs,Scholar,PIN049485,1116,
FCDO,CSC,28/09/2020,Scholar Stipend,Awards Costs,Scholar,PIN049486,1116,
FCDO,CSC,28/09/2020,Scholar Stipend,Awards Costs,Scholar,PIN049487,1116,
FCDO,CSC,28/09/2020,Scholar Stipend,Awards Costs,Scholar,PIN049488,558,
FCDO,CSC,28/09/2020,Scholar Stipend,Awards Costs,Scholar,PIN049489,1116,
FCDO,CSC,28/09/2020,Scholar Stipend,Awards Costs,Scholar,PIN049490,1369,
FCDO,CSC,28/09/2020,Scholar Stipend,Awards Costs,Scholar,PIN049491,684.5,
FCDO,CSC,28/09/2020,Scholar Stipend,Awards Costs,Scholar,PIN049492,1116,
FCDO,CSC,28/09/2020,Scholar Stipend,Awards Costs,Scholar,PIN049493,1116,
FCDO,CSC,28/09/2020,Scholar Stipend,Awards Costs,Scholar,PIN049494,1116,
FCDO,CSC,28/09/2020,Scholar Stipend,Awards Costs,Scholar,PIN049495,1116,
FCDO,CSC,28/09/2020,Scholar Stipend,Awards Costs,Scholar,PIN049496,1116,
FCDO,CSC,28/09/2020,Scholar Stipend,Awards Costs,Scholar,PIN049497,1116,
FCDO,CSC,28/09/2020,Scholar Stipend,Awards Costs,Scholar,PIN049498,1116,
FCDO,CSC,28/09/2020,Scholar Stipend,Awards Costs,Scholar,PIN049499,1116,
FCDO,CSC,28/09/2020,Scholar Stipend,Awards Costs,Scholar,PIN049500,1116,
FCDO,CSC,28/09/2020,Scholar Allowances,Awards Costs,Scholar,PIN049505,548.27,
FCDO,CSC,28/09/2020,Scholar Stipend,Awards Costs,Scholar,PIN049603,1116,
FCDO,CSC,28/09/2020,Scholar Stipend,Awards Costs,Scholar,PIN049604,1369,
FCDO,CSC,28/09/2020,Scholar Stipend,Awards Costs,Scholar,PIN049605,1116,
FCDO,CSC,28/09/2020,Scholar Stipend,Awards Costs,Scholar,PIN049606,1116,
FCDO,CSC,28/09/2020,Scholar Stipend,Awards Costs,Scholar,PIN049607,1116,
FCDO,CSC,28/09/2020,Scholar Stipend,Awards Costs,Scholar,PIN049608,733.31,
FCDO,CSC,28/09/2020,Scholar Stipend,Awards Costs,Scholar,PIN049609,1369,
FCDO,CSC,28/09/2020,Scholar Stipend,Awards Costs,Scholar,PIN049610,1116,
FCDO,CSC,28/09/2020,Scholar Stipend,Awards Costs,Scholar,PIN049611,1116,
FCDO,CSC,28/09/2020,Scholar Stipend,Awards Costs,Scholar,PIN049612,558,
FCDO,CSC,28/09/2020,Scholar Stipend,Awards Costs,Scholar,PIN049613,684.5,
FCDO,CSC,28/09/2020,Scholar Stipend,Awards Costs,Scholar,PIN049614,1116,
FCDO,CSC,28/09/2020,Scholar Stipend,Awards Costs,Scholar,PIN049615,1116,
FCDO,CSC,28/09/2020,Scholar Stipend,Awards Costs,Scholar,PIN049616,1369,
FCDO,CSC,28/09/2020,Scholar Stipend,Awards Costs,Scholar,PIN049617,1369,
FCDO,CSC,28/09/2020,Scholar Stipend,Awards Costs,Scholar,PIN049618,1116,
FCDO,CSC,28/09/2020,Scholar Stipend,Awards Costs,Scholar,PIN049619,558,
FCDO,CSC,28/09/2020,Scholar Stipend,Awards Costs,Scholar,PIN049620,1116,
FCDO,CSC,28/09/2020,Scholar Stipend,Awards Costs,Scholar,PIN049621,1116,
FCDO,CSC,28/09/2020,Scholar Stipend,Awards Costs,Scholar,PIN049622,1116,
FCDO,CSC,28/09/2020,Scholar Stipend,Awards Costs,Scholar,PIN049623,1116,
FCDO,CSC,28/09/2020,Scholar Stipend,Awards Costs,Scholar,PIN049624,1116,
FCDO,CSC,28/09/2020,Scholar Stipend,Awards Costs,Scholar,PIN049625,1116,
FCDO,CSC,28/09/2020,Scholar Stipend,Awards Costs,Scholar,PIN049626,1116,
FCDO,CSC,28/09/2020,Scholar Stipend,Awards Costs,Scholar,PIN049627,1116,
FCDO,CSC,28/09/2020,Scholar Stipend,Awards Costs,Scholar,PIN049628,1116,
FCDO,CSC,28/09/2020,Scholar Stipend,Awards Costs,Scholar,PIN049629,1116,
FCDO,CSC,28/09/2020,Scholar Stipend,Awards Costs,Scholar,PIN049630,1116,
FCDO,CSC,28/09/2020,Scholar Stipend,Awards Costs,Scholar,PIN049631,1116,
FCDO,CSC,28/09/2020,Scholar Stipend,Awards Costs,Scholar,PIN049632,1116,
FCDO,CSC,28/09/2020,Scholar Stipend,Awards Costs,Scholar,PIN049633,1116,
FCDO,CSC,28/09/2020,Scholar Stipend,Awards Costs,Scholar,PIN049634,1116,
FCDO,CSC,28/09/2020,Scholar Stipend,Awards Costs,Scholar,PIN049635,1116,
FCDO,CSC,28/09/2020,Scholar Stipend,Awards Costs,Scholar,PIN049636,1116,
FCDO,CSC,28/09/2020,Scholar Stipend,Awards Costs,Scholar,PIN049637,1116,
FCDO,CSC,28/09/2020,Scholar Stipend,Awards Costs,Scholar,PIN049638,1116,
FCDO,CSC,28/09/2020,Scholar Stipend,Awards Costs,Scholar,PIN049639,1116,
FCDO,CSC,28/09/2020,Scholar Stipend,Awards Costs,Scholar,PIN049640,1116,
FCDO,CSC,28/09/2020,Scholar Stipend,Awards Costs,Scholar,PIN049641,684.5,
FCDO,CSC,28/09/2020,Scholar Stipend,Awards Costs,Scholar,PIN049642,1116,
FCDO,CSC,28/09/2020,Scholar Stipend,Awards Costs,Scholar,PIN049643,1369,
FCDO,CSC,28/09/2020,Scholar Stipend,Awards Costs,Scholar,PIN049644,1116,
FCDO,CSC,28/09/2020,Scholar Stipend,Awards Costs,Scholar,PIN049645,1116,
FCDO,CSC,28/09/2020,Scholar Stipend,Awards Costs,Scholar,PIN049646,1116,
FCDO,CSC,28/09/2020,Scholar Stipend,Awards Costs,Scholar,PIN049647,1369,
FCDO,CSC,28/09/2020,Scholar Stipend,Awards Costs,Scholar,PIN049648,1116,
FCDO,CSC,28/09/2020,Scholar Stipend,Awards Costs,Scholar,PIN049649,558,
FCDO,CSC,28/09/2020,Scholar Stipend,Awards Costs,Scholar,PIN049650,1116,
FCDO,CSC,28/09/2020,Scholar Stipend,Awards Costs,Scholar,PIN049651,1116,
FCDO,CSC,28/09/2020,Scholar Stipend,Awards Costs,Scholar,PIN049652,1116,
FCDO,CSC,28/09/2020,Scholar Stipend,Awards Costs,Scholar,PIN049653,558,
FCDO,CSC,28/09/2020,Scholar Stipend,Awards Costs,Scholar,PIN049654,1116,
FCDO,CSC,28/09/2020,Scholar Stipend,Awards Costs,Scholar,PIN049655,1369,
FCDO,CSC,28/09/2020,Scholar Stipend,Awards Costs,Scholar,PIN049656,1116,
FCDO,CSC,28/09/2020,Scholar Stipend,Awards Costs,Scholar,PIN049657,1116,
FCDO,CSC,28/09/2020,Scholar Stipend,Awards Costs,Scholar,PIN049658,1116,
FCDO,CSC,28/09/2020,Scholar Stipend,Awards Costs,Scholar,PIN049659,1116,
FCDO,CSC,28/09/2020,Scholar Stipend,Awards Costs,Scholar,PIN049660,1116,
FCDO,CSC,28/09/2020,Scholar Stipend,Awards Costs,Scholar,PIN049661,1116,
FCDO,CSC,28/09/2020,Scholar Stipend,Awards Costs,Scholar,PIN049662,1369,
FCDO,CSC,28/09/2020,Scholar Stipend,Awards Costs,Scholar,PIN049663,1116,
FCDO,CSC,28/09/2020,Scholar Stipend,Awards Costs,Scholar,PIN049664,1116,
FCDO,CSC,28/09/2020,Scholar Stipend,Awards Costs,Scholar,PIN049665,1116,
FCDO,CSC,28/09/2020,Scholar Stipend,Awards Costs,Scholar,PIN049666,1116,
FCDO,CSC,28/09/2020,Scholar Stipend,Awards Costs,Scholar,PIN049667,1116,
FCDO,CSC,28/09/2020,Scholar Stipend,Awards Costs,Scholar,PIN049668,1116,
FCDO,CSC,28/09/2020,Scholar Stipend,Awards Costs,Scholar,PIN049669,1369,
FCDO,CSC,28/09/2020,Scholar Stipend,Awards Costs,Scholar,PIN049670,684.5,
FCDO,CSC,28/09/2020,Scholar Stipend,Awards Costs,Scholar,PIN049671,1116,
FCDO,CSC,28/09/2020,Scholar Stipend,Awards Costs,Scholar,PIN049672,1116,
FCDO,CSC,28/09/2020,Scholar Stipend,Awards Costs,Scholar,PIN049673,1116,
FCDO,CSC,28/09/2020,Scholar Stipend,Awards Costs,Scholar,PIN049674,1116,
FCDO,CSC,28/09/2020,Scholar Stipend,Awards Costs,Scholar,PIN049675,1116,
FCDO,CSC,28/09/2020,Scholar Stipend,Awards Costs,Scholar,PIN049676,1369,
FCDO,CSC,28/09/2020,Scholar Stipend,Awards Costs,Scholar,PIN049677,1116,
FCDO,CSC,28/09/2020,Scholar Stipend,Awards Costs,Scholar,PIN049678,1116,
FCDO,CSC,28/09/2020,Scholar Stipend,Awards Costs,Scholar,PIN049679,1116,
FCDO,CSC,28/09/2020,Scholar Stipend,Awards Costs,Scholar,PIN049680,1116,
FCDO,CSC,28/09/2020,Scholar Stipend,Awards Costs,Scholar,PIN049681,1369,
FCDO,CSC,28/09/2020,Scholar Stipend,Awards Costs,Scholar,PIN049682,1116,
FCDO,CSC,28/09/2020,Scholar Stipend,Awards Costs,Scholar,PIN049683,684.5,
FCDO,CSC,28/09/2020,Scholar Stipend,Programme Costs,Scholar,PIN049684,1116,
FCDO,CSC,28/09/2020,Scholar Stipend,Awards Costs,Scholar,PIN049685,1116,
FCDO,CSC,28/09/2020,Scholar Stipend,Awards Costs,Scholar,PIN049686,1116,
FCDO,CSC,28/09/2020,Scholar Stipend,Awards Costs,Scholar,PIN049687,1116,
FCDO,CSC,28/09/2020,Scholar Stipend,Awards Costs,Scholar,PIN049688,1116,
FCDO,CSC,28/09/2020,Scholar Stipend,Awards Costs,Scholar,PIN049689,1116,
FCDO,CSC,28/09/2020,Scholar Stipend,Awards Costs,Scholar,PIN049690,1116,
FCDO,CSC,28/09/2020,Scholar Stipend,Awards Costs,Scholar,PIN049691,1369,
FCDO,CSC,28/09/2020,Scholar Stipend,Awards Costs,Scholar,PIN049692,558,
FCDO,CSC,28/09/2020,Scholar Stipend,Awards Costs,Scholar,PIN049693,1116,
FCDO,CSC,28/09/2020,Scholar Stipend,Awards Costs,Scholar,PIN049694,1116,
FCDO,CSC,28/09/2020,Scholar Stipend,Awards Costs,Scholar,PIN049695,1116,
FCDO,CSC,28/09/2020,Scholar Stipend,Awards Costs,Scholar,PIN049696,562.22,
FCDO,CSC,28/09/2020,Scholar Stipend,Awards Costs,Scholar,PIN049697,1116,
FCDO,CSC,28/09/2020,Scholar Stipend,Awards Costs,Scholar,PIN049698,1116,
FCDO,CSC,28/09/2020,Scholar Stipend,Awards Costs,Scholar,PIN049699,1116,
FCDO,CSC,28/09/2020,Scholar Stipend,Awards Costs,Scholar,PIN049700,1116,
FCDO,CSC,28/09/2020,Scholar Stipend,Awards Costs,Scholar,PIN049701,1116,
FCDO,CSC,28/09/2020,Scholar Stipend,Awards Costs,Scholar,PIN049702,1116,
FCDO,CSC,28/09/2020,Scholar Stipend,Awards Costs,Scholar,PIN049703,1116,
FCDO,CSC,28/09/2020,Scholar Stipend,Awards Costs,Scholar,PIN049704,1116,
FCDO,CSC,28/09/2020,Scholar Stipend,Awards Costs,Scholar,PIN049705,1116,
FCDO,CSC,28/09/2020,Scholar Stipend,Awards Costs,Scholar,PIN049706,1116,
FCDO,CSC,28/09/2020,Scholar Stipend,Awards Costs,Scholar,PIN049707,1116,
FCDO,CSC,28/09/2020,Scholar Stipend,Awards Costs,Scholar,PIN049708,1116,
FCDO,CSC,28/09/2020,Scholar Stipend,Awards Costs,Scholar,PIN049709,1116,
FCDO,CSC,28/09/2020,Scholar Stipend,Awards Costs,Scholar,PIN049710,1369,
FCDO,CSC,28/09/2020,Scholar Stipend,Awards Costs,Scholar,PIN049711,1369,
FCDO,CSC,28/09/2020,Scholar Stipend,Awards Costs,Scholar,PIN049712,1116,
FCDO,CSC,28/09/2020,Scholar Stipend,Awards Costs,Scholar,PIN049713,1369,
FCDO,CSC,28/09/2020,Scholar Stipend,Awards Costs,Scholar,PIN049714,1116,
FCDO,CSC,28/09/2020,Scholar Stipend,Awards Costs,Scholar,PIN049715,1116,
FCDO,CSC,28/09/2020,Scholar Stipend,Awards Costs,Scholar,PIN049716,1116,
FCDO,CSC,28/09/2020,Scholar Stipend,Awards Costs,Scholar,PIN049717,558,
FCDO,CSC,28/09/2020,Scholar Stipend,Awards Costs,Scholar,PIN049718,1116,
FCDO,CSC,28/09/2020,Scholar Stipend,Awards Costs,Scholar,PIN049719,1116,
FCDO,CSC,28/09/2020,Scholar Stipend,Awards Costs,Scholar,PIN049720,1116,
FCDO,CSC,28/09/2020,Scholar Stipend,Awards Costs,Scholar,PIN049721,1116,
FCDO,CSC,28/09/2020,Scholar Stipend,Awards Costs,Scholar,PIN049722,558,
FCDO,CSC,28/09/2020,Scholar Stipend,Awards Costs,Scholar,PIN049723,558,
FCDO,CSC,28/09/2020,Scholar Stipend,Awards Costs,Scholar,PIN049724,1116,
FCDO,CSC,28/09/2020,Scholar Stipend,Awards Costs,Scholar,PIN049725,1116,
FCDO,CSC,28/09/2020,Scholar Stipend,Awards Costs,Scholar,PIN049726,558,
FCDO,CSC,28/09/2020,Scholar Stipend,Awards Costs,Scholar,PIN049727,1116,
FCDO,CSC,28/09/2020,Scholar Stipend,Awards Costs,Scholar,PIN049728,1369,
FCDO,CSC,28/09/2020,Scholar Stipend,Awards Costs,Scholar,PIN049729,1116,
FCDO,CSC,28/09/2020,Scholar Stipend,Awards Costs,Scholar,PIN049730,1116,
FCDO,CSC,28/09/2020,Scholar Stipend,Awards Costs,Scholar,PIN049731,1116,
FCDO,CSC,28/09/2020,Scholar Stipend,Awards Costs,Scholar,PIN049732,1116,
FCDO,CSC,28/09/2020,Scholar Stipend,Awards Costs,Scholar,PIN049733,1116,
FCDO,CSC,28/09/2020,Scholar Stipend,Awards Costs,Scholar,PIN049734,1116,
FCDO,CSC,28/09/2020,Scholar Stipend,Awards Costs,Scholar,PIN049735,1369,
FCDO,CSC,28/09/2020,Scholar Stipend,Awards Costs,Scholar,PIN049736,1116,
FCDO,CSC,28/09/2020,Scholar Stipend,Awards Costs,Scholar,PIN049737,1116,
FCDO,CSC,28/09/2020,Scholar Stipend,Awards Costs,Scholar,PIN049738,1116,
FCDO,CSC,28/09/2020,Scholar Stipend,Awards Costs,Scholar,PIN049739,1369,
FCDO,CSC,28/09/2020,Scholar Stipend,Awards Costs,Scholar,PIN049740,1116,
FCDO,CSC,28/09/2020,Scholar Stipend,Awards Costs,Scholar,PIN049741,1116,
FCDO,CSC,28/09/2020,Scholar Stipend,Awards Costs,Scholar,PIN049742,1116,
FCDO,CSC,28/09/2020,Scholar Stipend,Awards Costs,Scholar,PIN049743,1116,
FCDO,CSC,28/09/2020,Scholar Stipend,Awards Costs,Scholar,PIN049744,1369,
FCDO,CSC,28/09/2020,Scholar Stipend,Awards Costs,Scholar,PIN049745,1116,
FCDO,CSC,28/09/2020,Scholar Stipend,Awards Costs,Scholar,PIN049746,1116,
FCDO,CSC,28/09/2020,Scholar Stipend,Awards Costs,Scholar,PIN049747,1369,
FCDO,CSC,28/09/2020,Scholar Stipend,Awards Costs,Scholar,PIN049748,1116,
FCDO,CSC,28/09/2020,Scholar Stipend,Awards Costs,Scholar,PIN049749,558,
FCDO,CSC,28/09/2020,Scholar Stipend,Awards Costs,Scholar,PIN049750,1369,
FCDO,CSC,28/09/2020,Scholar Stipend,Awards Costs,Scholar,PIN049751,1116,
FCDO,CSC,28/09/2020,Scholar Stipend,Awards Costs,Scholar,PIN049752,1369,
FCDO,CSC,28/09/2020,Scholar Stipend,Awards Costs,Scholar,PIN049753,1116,
FCDO,CSC,28/09/2020,Scholar Stipend,Awards Costs,Scholar,PIN049754,1369,
FCDO,CSC,28/09/2020,Scholar Stipend,Awards Costs,Scholar,PIN049755,1116,
FCDO,CSC,28/09/2020,Scholar Stipend,Awards Costs,Scholar,PIN049756,659.98,
FCDO,CSC,28/09/2020,Scholar Stipend,Awards Costs,Scholar,PIN049757,1369,
FCDO,CSC,28/09/2020,Scholar Stipend,Awards Costs,Scholar,PIN049758,1116,
FCDO,CSC,28/09/2020,Scholar Stipend,Awards Costs,Scholar,PIN049759,1369,
FCDO,CSC,28/09/2020,Scholar Stipend,Awards Costs,Scholar,PIN049760,1116,
FCDO,CSC,28/09/2020,Scholar Stipend,Awards Costs,Scholar,PIN049761,1116,
FCDO,CSC,28/09/2020,Scholar Stipend,Awards Costs,Scholar,PIN049762,1116,
FCDO,CSC,28/09/2020,Scholar Stipend,Awards Costs,Scholar,PIN049763,1116,
FCDO,CSC,28/09/2020,Scholar Stipend,Awards Costs,Scholar,PIN049764,1116,
FCDO,CSC,28/09/2020,Scholar Stipend,Awards Costs,Scholar,PIN049765,1116,
FCDO,CSC,28/09/2020,Scholar Stipend,Awards Costs,Scholar,PIN049766,1369,
FCDO,CSC,28/09/2020,Scholar Stipend,Awards Costs,Scholar,PIN049767,1116,
FCDO,CSC,28/09/2020,Scholar Stipend,Awards Costs,Scholar,PIN049768,1369,
FCDO,CSC,28/09/2020,Scholar Stipend,Awards Costs,Scholar,PIN049769,1116,
FCDO,CSC,28/09/2020,Scholar Stipend,Awards Costs,Scholar,PIN049770,1116,
FCDO,CSC,28/09/2020,Scholar Stipend,Awards Costs,Scholar,PIN049771,1116,
FCDO,CSC,28/09/2020,Scholar Stipend,Awards Costs,Scholar,PIN049772,1116,
FCDO,CSC,28/09/2020,Scholar Stipend,Awards Costs,Scholar,PIN049773,1116,
FCDO,CSC,28/09/2020,Scholar Stipend,Awards Costs,Scholar,PIN049774,558,
FCDO,CSC,28/09/2020,Scholar Stipend,Awards Costs,Scholar,PIN049775,1116,
FCDO,CSC,28/09/2020,Scholar Stipend,Awards Costs,Scholar,PIN049776,1369,
FCDO,CSC,28/09/2020,Scholar Stipend,Awards Costs,Scholar,PIN049777,684.5,
FCDO,CSC,28/09/2020,Scholar Stipend,Awards Costs,Scholar,PIN049778,1116,
FCDO,CSC,28/09/2020,Scholar Stipend,Awards Costs,Scholar,PIN049779,1116,
FCDO,CSC,28/09/2020,Scholar Stipend,Awards Costs,Scholar,PIN049780,1116,
FCDO,CSC,28/09/2020,Scholar Stipend,Awards Costs,Scholar,PIN049781,1116,
FCDO,CSC,28/09/2020,Scholar Stipend,Awards Costs,Scholar,PIN049782,1116,
FCDO,CSC,28/09/2020,Scholar Stipend,Awards Costs,Scholar,PIN049783,1116,
FCDO,CSC,28/09/2020,Scholar Stipend,Awards Costs,Scholar,PIN049784,1116,
FCDO,CSC,28/09/2020,Scholar Stipend,Awards Costs,Scholar,PIN049785,1116,
FCDO,CSC,28/09/2020,Scholar Stipend,Awards Costs,Scholar,PIN049786,1116,
FCDO,CSC,24/09/2020,Scholar Allowances,Awards Costs,Scholar,PIN049881,275,
FCDO,CSC,24/09/2020,Scholar Stipend,Awards Costs,Scholar,PIN049881,984.44,
FCDO,CSC,24/09/2020,Scholar Stipend,Awards Costs,Scholar,PIN049882,1252.93,
FCDO,CSC,24/09/2020,Scholar Allowances,Awards Costs,Scholar,PIN049882,250,
FCDO,CSC,24/09/2020,Scholar Allowances,Awards Costs,Scholar,PIN049883,225,
FCDO,CSC,24/09/2020,Scholar Stipend,Awards Costs,Scholar,PIN049883,583.49,
FCDO,CSC,28/09/2020,Scholar Allowances,Awards Costs,Scholar,PIN049886,740,
FCDO,CSC,28/09/2020,Scholar Allowances,Awards Costs,Scholar,PIN049887,1125,
FCDO,CSC,28/09/2020,Scholar Allowances,Awards Costs,Scholar,PIN049888,275,
FCDO,CSC,28/09/2020,Scholar Stipend,Awards Costs,Scholar,PIN049888,328.21,
FCDO,CSC,28/09/2020,Scholar Allowances,Awards Costs,Scholar,PIN049889,275,
FCDO,CSC,28/09/2020,Scholar Stipend,Awards Costs,Scholar,PIN049889,1029.19,
FCDO,CSC,28/09/2020,Scholar Stipend,Awards Costs,Scholar,PRF000194,-3348,
FCDO,CSC,28/09/2020,Scholar Engagement,Programme Costs,CLARKES OF LONDON,PRF000196,-1012.7,
FCDO,CSC,01/09/2020,Scholar Stipend,Awards Costs,Scholar,PIN048692,984.44,
FCDO,CSC,01/10/2020,Bank Charges,Admin Costs,RBS,NOM000999,-728.74,
FCDO,CSC,05/10/2020,Engagement,Programme Costs,NatWest CC,NOM001001,19,
FCDO,CSC,05/10/2020,Engagement,Programme Costs,NatWest CC,NOM001001,59,
FCDO,CSC,05/10/2020,Engagement,Programme Costs,NatWest CC,NOM001001,392.66,
FCDO,CSC,05/10/2020,Engagement,Programme Costs,NatWest CC,NOM001001,9.99,
FCDO,CSC,05/10/2020,Engagement,Programme Costs,NatWest CC,NOM001001,11.99,
FCDO,CSC,05/10/2020,Engagement,Programme Costs,NatWest CC,NOM001001,220.86,
FCDO,CSC,05/10/2020,Engagement,Programme Costs,NatWest CC,NOM001001,1246.8,
FCDO,CSC,05/10/2020,Engagement,Programme Costs,NatWest CC,NOM001001,452.01,
FCDO,CSC,05/10/2020,Engagement,Programme Costs,NatWest CC,NOM001001,19.53,
FCDO,CSC,05/10/2020,Engagement,Programme Costs,NatWest CC,NOM001001,299.8,
FCDO,CSC,30/10/2020,Postage & Courier,Programme Costs,DHL,NOM001005,1558.05,
FCDO,CSC,02/10/2020,Award Support Costs,Awards Costs,Liverpool John Moores University,PIN049893,850,
FCDO,CSC,02/10/2020,Award Support Costs,Awards Costs,Liverpool John Moores University,PIN049893,800,
FCDO,CSC,02/10/2020,Award Support Costs,Awards Costs,Liverpool John Moores University,PIN049893,1200,
FCDO,CSC,02/10/2020,Award Support Costs,Awards Costs,Liverpool John Moores University,PIN049893,800,
FCDO,CSC,02/10/2020,Award Support Costs,Awards Costs,Liverpool John Moores University,PIN049893,1200,
FCDO,CSC,02/10/2020,Award Support Costs,Awards Costs,Liverpool John Moores University,PIN049893,800,
FCDO,CSC,02/10/2020,Award Support Costs,Awards Costs,Liverpool John Moores University,PIN049893,1200,
FCDO,CSC,02/10/2020,Award Support Costs,Awards Costs,Liverpool John Moores University,PIN049893,800,
FCDO,CSC,02/10/2020,Award Support Costs,Awards Costs,Liverpool John Moores University,PIN049893,1200,
FCDO,CSC,02/10/2020,Award Support Costs,Awards Costs,Liverpool John Moores University,PIN049893,800,
FCDO,CSC,02/10/2020,Tuition Fee,Awards Costs,University of Southampton,PIN049894,12854,
FCDO,CSC,02/10/2020,Tuition Fee,Awards Costs,University of Southampton,PIN049895,13267,
FCDO,CSC,02/10/2020,Scholar Allowances,Awards Costs,Scholar,PIN049902,250,
FCDO,CSC,02/10/2020,Scholar Allowances,Awards Costs,Scholar,PIN049902,321,
FCDO,CSC,02/10/2020,Tuition Fee,Awards Costs,University of Manchester,PIN049903,18000,
FCDO,CSC,02/10/2020,Scholar Travel,Awards Costs,Scholar,PIN049905,49.05,
FCDO,CSC,02/10/2020,Scholar Travel,Awards Costs,Scholar,PIN049905,824.88,
FCDO,CSC,01/10/2020,Scholar Allowances,Awards Costs,Scholar,PIN049908,300,
FCDO,CSC,01/10/2020,Scholar Stipend,Awards Costs,Scholar,PIN049908,1110,
FCDO,CSC,01/10/2020,Scholar Stipend,Awards Costs,Scholar,PIN049909,939.7,
FCDO,CSC,01/10/2020,Scholar Allowances,Awards Costs,Scholar,PIN049909,275,
FCDO,CSC,01/10/2020,Scholar Allowances,Awards Costs,Scholar,PIN049911,275,
FCDO,CSC,01/10/2020,Scholar Stipend,Awards Costs,Scholar,PIN049911,1252.93,
FCDO,CSC,02/10/2020,Scholar Stipend,Awards Costs,Scholar,PIN049912,1116,
FCDO,CSC,02/10/2020,Scholar Allowances,Awards Costs,Scholar,PIN049914,583.49,
FCDO,CSC,02/10/2020,Scholar Stipend,Awards Costs,Scholar,PIN049915,3348,
FCDO,CSC,02/10/2020,Scholar Allowances,Awards Costs,Scholar,PIN049916,2358.5,
FCDO,CSC,02/10/2020,Scholar Stipend,Awards Costs,Scholar,PIN049917,1857.32,
FCDO,CSC,02/10/2020,Scholar Allowances,Awards Costs,Scholar,PIN049918,888,
FCDO,CSC,02/10/2020,Scholar Allowances,Awards Costs,Scholar,PIN049920,1788,
FCDO,CSC,02/10/2020,Scholar Stipend,Awards Costs,Scholar,PIN049920,3348,
FCDO,CSC,02/10/2020,Scholar Stipend,Awards Costs,Scholar,PIN049923,1116,
FCDO,CSC,02/10/2020,Scholar Stipend,Awards Costs,Scholar,PIN049924,843.3,
FCDO,CSC,05/10/2020,Scholar Stipend,Awards Costs,Scholar,PIN049925,3348,
FCDO,CSC,05/10/2020,Scholar Allowances,Awards Costs,Scholar,PIN049927,464.23,
FCDO,CSC,05/10/2020,Scholar Allowances,Awards Costs,Scholar,PIN049927,464.23,
FCDO,CSC,05/10/2020,Scholar Stipend,Awards Costs,Scholar,PIN049927,2158.67,
FCDO,CSC,05/10/2020,Scholar Allowances,Awards Costs,Scholar,PIN049928,720,
FCDO,CSC,05/10/2020,Scholar Stipend,Awards Costs,Scholar,PIN049928,3348,
FCDO,CSC,05/10/2020,Scholar Stipend,Awards Costs,Scholar,PIN049929,4916.49,
FCDO,CSC,09/10/2020,Award Support Costs,Awards Costs,University of Oxford,PIN049933,5000,
FCDO,CSC,09/10/2020,Tuition Fee,Awards Costs,Pembroke College,PIN049934,18000,
FCDO,CSC,09/10/2020,Tuition Fee,Awards Costs,Green Templeton College,PIN049935,18000,
FCDO,CSC,09/10/2020,Tuition Fee,Awards Costs,Green Templeton College,PIN049936,18000,
FCDO,CSC,09/10/2020,Tuition Fee,Awards Costs,London School of Economics,PIN049937,13766.4,
FCDO,CSC,09/10/2020,Tuition Fee,Awards Costs,University of Glasgow,PIN049938,16816,
FCDO,CSC,09/10/2020,Tuition Fee,Awards Costs,University of Glasgow,PIN049939,16120,
FCDO,CSC,09/10/2020,Tuition Fee,Awards Costs,University of Glasgow,PIN049940,16120,
FCDO,CSC,09/10/2020,Scholar Allowances,Programme Costs,Shaw Trust Ltd,PIN049945,1800,
FCDO,CSC,07/10/2020,Scholar Allowances,Awards Costs,Scholar,PIN049946,300,
FCDO,CSC,07/10/2020,Scholar Stipend,Awards Costs,Scholar,PIN049946,729.36,
FCDO,CSC,07/10/2020,Scholar Allowances,Awards Costs,Scholar,PIN049949,720,
FCDO,CSC,07/10/2020,Scholar Stipend,Awards Costs,Scholar,PIN049949,3348,
FCDO,CSC,07/10/2020,Scholar Allowances,Awards Costs,Scholar,PIN049950,240,
FCDO,CSC,07/10/2020,Scholar Allowances,Awards Costs,Scholar,PIN049950,358,
FCDO,CSC,07/10/2020,Scholar Stipend,Awards Costs,Scholar,PIN049950,1116,
FCDO,CSC,07/10/2020,Scholar Stipend,Awards Costs,Scholar,PIN049951,4458,
FCDO,CSC,07/10/2020,Scholar Stipend,Awards Costs,Scholar,PIN049952,1905.3,
FCDO,CSC,07/10/2020,Scholar Stipend,Awards Costs,Scholar,PIN049953,3348,
FCDO,CSC,09/10/2020,Scholar Stipend,Awards Costs,Scholar,PIN049954,536.97,
FCDO,CSC,09/10/2020,Scholar Stipend,Awards Costs,Scholar,PIN049955,1110,
FCDO,CSC,12/10/2020,Scholar Allowances,Awards Costs,Scholar,PIN049956,300,
FCDO,CSC,12/10/2020,Scholar Stipend,Awards Costs,Scholar,PIN049956,329.99,
FCDO,CSC,14/10/2020,Scholar Allowances,Awards Costs,Scholar,PIN049957,300,
FCDO,CSC,14/10/2020,Scholar Stipend,Awards Costs,Scholar,PIN049957,403.31,
FCDO,CSC,14/10/2020,Scholar Allowances,Awards Costs,Scholar,PIN049958,892.8,
FCDO,CSC,14/10/2020,Scholar Allowances,Awards Costs,Scholar,PIN049960,20.2,
FCDO,CSC,14/10/2020,Scholar Allowances,Awards Costs,Scholar,PIN049960,208.82,
FCDO,CSC,14/10/2020,Scholar Stipend,Awards Costs,Scholar,PIN049960,490.04,
FCDO,CSC,14/10/2020,Scholar Allowances,Awards Costs,Scholar,PIN049961,200.57,
FCDO,CSC,14/10/2020,Scholar Allowances,Awards Costs,Scholar,PIN049961,397.81,
FCDO,CSC,14/10/2020,Scholar Stipend,Awards Costs,Scholar,PIN049961,1050.69,
FCDO,CSC,14/10/2020,Scholar Allowances,Awards Costs,Scholar,PIN049963,720,
FCDO,CSC,14/10/2020,Scholar Allowances,Awards Costs,Scholar,PIN049963,1074,
FCDO,CSC,14/10/2020,Scholar Stipend,Awards Costs,Scholar,PIN049963,3348,
FCDO,CSC,14/10/2020,Scholar Allowances,Awards Costs,Scholar,PIN049964,1674,
FCDO,CSC,14/10/2020,Scholar Allowances,Programme Costs,Scholar,PIN049965,696.34,
FCDO,CSC,14/10/2020,Scholar Allowances,Awards Costs,Scholar,PIN049965,1038.71,
FCDO,CSC,14/10/2020,Scholar Stipend,Awards Costs,Scholar,PIN049965,3238,
FCDO,CSC,16/10/2020,Award Support Costs,Awards Costs,University of Aberdeen,PIN049967,5000,
DFE,CSC,16/10/2020,Scholar Stipend,Awards Costs,University of Oxford,PIN049968,-4400,
FCDO,CSC,16/10/2020,Tuition Fee,Awards Costs,University of Southampton,PIN049969,18000,
FCDO,CSC,16/10/2020,Tuition Fee,Awards Costs,University of Southampton,PIN049970,15049.6,
FCDO,CSC,16/10/2020,Scholar Allowances,Awards Costs,Scholar,PIN049974,600,
FCDO,CSC,16/10/2020,Tuition Fee,Awards Costs,University of Manchester,PIN049976,4831.8,
DFE,CSC,16/10/2020,Scholar Travel,Awards Costs,University of Oxford,PIN049977,655.31,
DFE,CSC,16/10/2020,Scholar Allowances,Awards Costs,University of Oxford,PIN049977,170,
DFE,CSC,16/10/2020,Scholar Allowances,Awards Costs,University of Oxford,PIN049977,600,
DFE,CSC,16/10/2020,Scholar Allowances,Awards Costs,University of Oxford,PIN049977,431,
DFE,CSC,16/10/2020,Scholar Stipend,Awards Costs,University of Oxford,PIN049977,13320,
DFE,CSC,16/10/2020,Tuition Fee,Awards Costs,University of Oxford,PIN049977,15967,
DFE,CSC,16/10/2020,Scholar Allowances,Awards Costs,University of Oxford,PIN049977,600,
DFE,CSC,16/10/2020,Scholar Allowances,Awards Costs,University of Oxford,PIN049977,431,
DFE,CSC,16/10/2020,Scholar Allowances,Awards Costs,University of Oxford,PIN049977,170,
FCDO,CSC,16/10/2020,Scholar Allowances,Awards Costs,University of Oxford,PIN049977,1875.83,
DFE,CSC,16/10/2020,Scholar Stipend,Awards Costs,University of Oxford,PIN049977,13320,
DFE,CSC,16/10/2020,Scholar Allowances,Awards Costs,University of Oxford,PIN049977,50,
DFE,CSC,16/10/2020,Award Support Costs,Awards Costs,University of Oxford,PIN049977,5000,
DFE,CSC,16/10/2020,Scholar Stipend,Awards Costs,University of Oxford,PIN049977,13320,
DFE,CSC,16/10/2020,Tuition Fee,Awards Costs,University of Oxford,PIN049977,23950,
DFE,CSC,16/10/2020,Scholar Allowances,Awards Costs,University of Oxford,PIN049977,50,
DFE,CSC,16/10/2020,Award Support Costs,Awards Costs,University of Oxford,PIN049977,5000,
DFE,CSC,16/10/2020,Scholar Stipend,Awards Costs,University of Oxford,PIN049977,13320,
FCDO,CSC,16/10/2020,Tuition Fee,Awards Costs,University of London,PIN049980,70340,
FCDO,CSC,16/10/2020,Tuition Fee,Awards Costs,University of London,PIN049981,2194.8,
FCDO,CSC,16/10/2020,Tuition Fee,Awards Costs,University of London,PIN049982,4035.6,
FCDO,CSC,16/10/2020,Tuition Fee,Awards Costs,University of London,PIN049983,-1690,
FCDO,CSC,16/10/2020,Tuition Fee,Awards Costs,University of London,PIN049984,-1690,
FCDO,CSC,16/10/2020,Scholar Travel,Awards Costs,Scholar,PIN049985,863.63,
FCDO,CSC,16/10/2020,Tuition Fee,Awards Costs,University of Southampton,PIN049987,15049.6,
FCDO,CSC,16/10/2020,Tuition Fee,Awards Costs,University of Southampton,PIN049988,15049.6,
FCDO,CSC,16/10/2020,Tuition Fee,Awards Costs,Royal Agricultural University,PIN049989,9792,
FCDO,CSC,16/10/2020,Tuition Fee,Awards Costs,Royal Agricultural University,PIN049990,9792,
FCDO,CSC,16/10/2020,Tuition Fee,Awards Costs,The University of Edinburgh,PIN049991,6900,
FCDO,CSC,16/10/2020,Tuition Fee,Awards Costs,The University of Edinburgh,PIN049992,1730,
FCDO,CSC,16/10/2020,Tuition Fee,Awards Costs,The University of Edinburgh,PIN049993,9515,
FCDO,CSC,16/10/2020,Tuition Fee,Awards Costs,The University of Edinburgh,PIN049994,5175,
FCDO,CSC,16/10/2020,Tuition Fee,Awards Costs,The University of Edinburgh,PIN049995,1725,
FCDO,CSC,16/10/2020,Tuition Fee,Awards Costs,The University of Edinburgh,PIN049996,865,
FCDO,CSC,16/10/2020,Tuition Fee,Awards Costs,The University of Edinburgh,PIN049997,865,
FCDO,CSC,16/10/2020,Tuition Fee,Awards Costs,The University of Edinburgh,PIN049998,3460,
FCDO,CSC,16/10/2020,Tuition Fee,Awards Costs,The University of Edinburgh,PIN049999,2585,
FCDO,CSC,16/10/2020,Tuition Fee,Awards Costs,The University of Edinburgh,PIN050000,-5170,
FCDO,CSC,16/10/2020,Tuition Fee,Awards Costs,The University of Edinburgh,PIN050001,12920,
FCDO,CSC,16/10/2020,Tuition Fee,Awards Costs,The University of Edinburgh,PIN050002,865,
FCDO,CSC,16/10/2020,Tuition Fee,Awards Costs,The University of Edinburgh,PIN050003,770,
FCDO,CSC,16/10/2020,Tuition Fee,Awards Costs,The University of Edinburgh,PIN050004,-7350,
FCDO,CSC,16/10/2020,Tuition Fee,Awards Costs,The University of Edinburgh,PIN050005,1730,
FCDO,CSC,16/10/2020,Tuition Fee,Awards Costs,The University of Edinburgh,PIN050006,18955,
FCDO,CSC,16/10/2020,Award Support Costs,Awards Costs,University of Kent,PIN050008,5000,
FCDO,CSC,16/10/2020,Tuition Fee,Awards Costs,University of Sheffield,PIN050009,13440,
FCDO,CSC,16/10/2020,Tuition Fee,Awards Costs,University of Bristol,PIN050010,17360,
FCDO,CSC,16/10/2020,Scholar Allowances,Awards Costs,University of Teesside,PIN050011,8175.52,
FCDO,CSC,16/10/2020,Scholar Travel,Awards Costs,Diversity Travel,PIN050012,855.51,
BEIS,CSC,16/10/2020,Scholar Travel,Awards Costs,Diversity Travel,PIN050012,650.84,
FCDO,CSC,16/10/2020,Scholar Travel,Awards Costs,Diversity Travel,PIN050013,845.79,
FCDO,CSC,16/10/2020,Scholar Travel,Awards Costs,Diversity Travel,PIN050014,783.75,
FCDO,CSC,16/10/2020,Scholar Travel,Awards Costs,Diversity Travel,PIN050015,701.67,
BEIS,CSC,16/10/2020,Scholar Travel,Awards Costs,Diversity Travel,PIN050016,-429.32,
FCDO,CSC,16/10/2020,Scholar Travel,Awards Costs,Diversity Travel,PIN050016,-150.54,
FCDO,CSC,16/10/2020,Scholar Travel,Awards Costs,Diversity Travel,PIN050016,-322.96,
FCDO,CSC,16/10/2020,Fieldwork Airfare,Awards Costs,Diversity Travel,PIN050016,-445.07,
FCDO,CSC,16/10/2020,Fieldwork Airfare,Awards Costs,Diversity Travel,PIN050016,-520.46,
BEIS,CSC,16/10/2020,Scholar Travel,Awards Costs,Diversity Travel,PIN050016,-278.87,
FCDO,CSC,16/10/2020,Scholar Travel,Awards Costs,Diversity Travel,PIN050016,-7.47,
FCDO,CSC,16/10/2020,Scholar Travel,Awards Costs,Diversity Travel,PIN050016,722.15,
FCDO,CSC,16/10/2020,Scholar Travel,Awards Costs,Diversity Travel,PIN050016,1010.7,
FCDO,CSC,16/10/2020,Scholar Travel,Awards Costs,Diversity Travel,PIN050016,1075.03,
FCDO,CSC,16/10/2020,Scholar Travel,Awards Costs,Diversity Travel,PIN050016,974.35,
FCDO,CSC,16/10/2020,Scholar Travel,Awards Costs,Diversity Travel,PIN050016,7.47,
FCDO,CSC,16/10/2020,Scholar Travel,Awards Costs,Diversity Travel,PIN050018,-654.16,
FCDO,CSC,16/10/2020,Scholar Engagement,Programme Costs,Diversity Travel,PIN050018,-325.11,
FCDO,CSC,16/10/2020,Fieldwork Airfare,Awards Costs,Diversity Travel,PIN050018,-761.53,
FCDO,CSC,16/10/2020,Scholar Travel,Awards Costs,Diversity Travel,PIN050018,-207.48,
FCDO,CSC,16/10/2020,Fieldwork Airfare,Awards Costs,Diversity Travel,PIN050018,-305,
FCDO,CSC,16/10/2020,Scholar Travel,Awards Costs,Diversity Travel,PIN050018,692.06,
FCDO,CSC,16/10/2020,Scholar Travel,Awards Costs,Diversity Travel,PIN050020,574.14,
FCDO,CSC,16/10/2020,Scholar Travel,Awards Costs,Diversity Travel,PIN050020,520.95,
FCDO,CSC,16/10/2020,Scholar Travel,Awards Costs,Diversity Travel,PIN050021,867.89,
FCDO,CSC,16/10/2020,Scholar Travel,Awards Costs,Diversity Travel,PIN050021,867.59,
FCDO,CSC,16/10/2020,Scholar Travel,Awards Costs,Diversity Travel,PIN050021,1018.42,
FCDO,CSC,16/10/2020,Scholar Travel,Awards Costs,Diversity Travel,PIN050021,1095.03,
FCDO,CSC,16/10/2020,Scholar Travel,Awards Costs,Diversity Travel,PIN050021,855.9,
BEIS,CSC,16/10/2020,Scholar Travel,Awards Costs,Diversity Travel,PIN050021,-266.12,
FCDO,CSC,16/10/2020,Fieldwork Airfare,Awards Costs,Diversity Travel,PIN050022,1847.56,
FCDO,CSC,16/10/2020,Scholar Travel,Awards Costs,Diversity Travel,PIN050022,1630.32,
FCDO,CSC,16/10/2020,Scholar Travel,Awards Costs,Diversity Travel,PIN050022,792.72,
FCDO,CSC,16/10/2020,Scholar Travel,Awards Costs,Diversity Travel,PIN050022,745.65,
FCDO,CSC,16/10/2020,Scholar Travel,Awards Costs,Diversity Travel,PIN050022,743.55,
FCDO,CSC,16/10/2020,Scholar Travel,Programme Costs,Diversity Travel,PIN050022,697.91,
FCDO,CSC,16/10/2020,Scholar Travel,Awards Costs,Diversity Travel,PIN050022,666.49,
FCDO,CSC,16/10/2020,Scholar Travel,Awards Costs,Diversity Travel,PIN050022,658.11,
FCDO,CSC,16/10/2020,Scholar Travel,Awards Costs,Diversity Travel,PIN050022,601.98,
FCDO,CSC,16/10/2020,Scholar Travel,Awards Costs,Diversity Travel,PIN050022,557.8,
FCDO,CSC,16/10/2020,Scholar Travel,Awards Costs,Diversity Travel,PIN050022,522.21,
FCDO,CSC,16/10/2020,Scholar Travel,Awards Costs,Diversity Travel,PIN050022,489.07,
FCDO,CSC,16/10/2020,Scholar Travel,Awards Costs,Diversity Travel,PIN050022,112.34,
FCDO,CSC,16/10/2020,Scholar Travel,Awards Costs,Diversity Travel,PIN050022,52.6,
FCDO,CSC,16/10/2020,Scholar Travel,Awards Costs,Diversity Travel,PIN050022,-105.01,
FCDO,CSC,16/10/2020,Scholar Travel,Awards Costs,Diversity Travel,PIN050023,987.5,
FCDO,CSC,16/10/2020,Scholar Travel,Awards Costs,Diversity Travel,PIN050023,979.86,
FCDO,CSC,16/10/2020,Scholar Travel,Awards Costs,Diversity Travel,PIN050023,938.59,
FCDO,CSC,16/10/2020,Scholar Travel,Awards Costs,Diversity Travel,PIN050023,828.8,
FCDO,CSC,16/10/2020,Scholar Travel,Awards Costs,Diversity Travel,PIN050023,828.1,
FCDO,CSC,16/10/2020,Scholar Travel,Awards Costs,Diversity Travel,PIN050023,794,
FCDO,CSC,16/10/2020,Scholar Travel,Awards Costs,Diversity Travel,PIN050023,737.98,
FCDO,CSC,16/10/2020,Scholar Travel,Awards Costs,Diversity Travel,PIN050023,690.64,
FCDO,CSC,16/10/2020,Scholar Travel,Awards Costs,Diversity Travel,PIN050023,667.02,
FCDO,CSC,16/10/2020,Scholar Travel,Awards Costs,Diversity Travel,PIN050023,586,
FCDO,CSC,16/10/2020,Scholar Travel,Awards Costs,Diversity Travel,PIN050023,549.22,
FCDO,CSC,16/10/2020,Scholar Travel,Awards Costs,Diversity Travel,PIN050023,540.22,
FCDO,CSC,16/10/2020,Scholar Travel,Awards Costs,Diversity Travel,PIN050023,529.51,
FCDO,CSC,16/10/2020,Scholar Travel,Awards Costs,Diversity Travel,PIN050023,527.64,
FCDO,CSC,16/10/2020,Scholar Travel,Awards Costs,Diversity Travel,PIN050023,492.16,
FCDO,CSC,16/10/2020,Scholar Travel,Awards Costs,Diversity Travel,PIN050023,443.08,
FCDO,CSC,16/10/2020,Scholar Travel,Awards Costs,Diversity Travel,PIN050023,311.2,
FCDO,CSC,16/10/2020,Scholar Travel,Awards Costs,Diversity Travel,PIN050023,69.64,
FCDO,CSC,16/10/2020,Scholar Travel,Awards Costs,Diversity Travel,PIN050023,38.1,
FCDO,CSC,16/10/2020,Scholar Travel,Awards Costs,Diversity Travel,PIN050023,37.1,
FCDO,CSC,16/10/2020,Scholar Travel,Awards Costs,Diversity Travel,PIN050023,25.99,
FCDO,CSC,16/10/2020,Scholar Travel,Awards Costs,Diversity Travel,PIN050023,17.4,
FCDO,CSC,16/10/2020,Scholar Travel,Awards Costs,Diversity Travel,PIN050024,1269.46,
FCDO,CSC,16/10/2020,Scholar Travel,Awards Costs,Diversity Travel,PIN050024,892.37,
FCDO,CSC,16/10/2020,Scholar Travel,Awards Costs,Diversity Travel,PIN050024,838.98,
FCDO,CSC,16/10/2020,Scholar Travel,Awards Costs,Diversity Travel,PIN050024,739.06,
FCDO,CSC,16/10/2020,Scholar Travel,Awards Costs,Diversity Travel,PIN050024,704.34,
FCDO,CSC,16/10/2020,Scholar Travel,Awards Costs,Diversity Travel,PIN050024,642.83,
FCDO,CSC,16/10/2020,Scholar Travel,Awards Costs,Diversity Travel,PIN050024,638.68,
FCDO,CSC,16/10/2020,Scholar Travel,Awards Costs,Diversity Travel,PIN050024,630.54,
FCDO,CSC,16/10/2020,Scholar Travel,Awards Costs,Diversity Travel,PIN050024,618.98,
FCDO,CSC,16/10/2020,Scholar Travel,Awards Costs,Diversity Travel,PIN050024,588.9,
FCDO,CSC,16/10/2020,Scholar Travel,Awards Costs,Diversity Travel,PIN050024,577.01,
FCDO,CSC,16/10/2020,Scholar Travel,Awards Costs,Diversity Travel,PIN050024,563.16,
FCDO,CSC,16/10/2020,Scholar Travel,Awards Costs,Diversity Travel,PIN050024,536.92,
FCDO,CSC,16/10/2020,Scholar Travel,Awards Costs,Diversity Travel,PIN050024,517.18,
FCDO,CSC,16/10/2020,Scholar Travel,Awards Costs,Diversity Travel,PIN050024,507.32,
FCDO,CSC,16/10/2020,Scholar Travel,Awards Costs,Diversity Travel,PIN050024,501.16,
FCDO,CSC,16/10/2020,Scholar Travel,Awards Costs,Diversity Travel,PIN050024,489.24,
FCDO,CSC,16/10/2020,Scholar Travel,Awards Costs,Diversity Travel,PIN050024,462.06,
FCDO,CSC,16/10/2020,Scholar Travel,Awards Costs,Diversity Travel,PIN050024,459.36,
FCDO,CSC,16/10/2020,Scholar Travel,Awards Costs,Diversity Travel,PIN050024,455.82,
FCDO,CSC,16/10/2020,Scholar Travel,Awards Costs,Diversity Travel,PIN050024,392.46,
FCDO,CSC,16/10/2020,Scholar Travel,Awards Costs,Diversity Travel,PIN050024,373.92,
FCDO,CSC,16/10/2020,Scholar Travel,Awards Costs,Diversity Travel,PIN050024,289.9,
FCDO,CSC,16/10/2020,Scholar Travel,Awards Costs,Diversity Travel,PIN050024,38.5,
FCDO,CSC,16/10/2020,Scholar Travel,Awards Costs,Diversity Travel,PIN050024,15,
FCDO,CSC,16/10/2020,Scholar Travel,Awards Costs,Diversity Travel,PIN050024,9,
FCDO,CSC,19/10/2020,Scholar Stipend,Awards Costs,Scholar,PIN050031,3348,
FCDO,CSC,19/10/2020,Scholar Allowances,Awards Costs,Scholar,PIN050032,888,
FCDO,CSC,19/10/2020,Scholar Stipend,Awards Costs,Scholar,PIN050033,2232,
FCDO,CSC,19/10/2020,Scholar Stipend,Awards Costs,Scholar,PIN050035,2232,
FCDO,CSC,19/10/2020,Scholar Allowances,Awards Costs,Scholar,PIN050036,200,
FCDO,CSC,19/10/2020,Scholar Stipend,Awards Costs,Scholar,PIN050036,875.24,
FCDO,CSC,19/10/2020,Scholar Allowances,Awards Costs,Scholar,PIN050037,200,
FCDO,CSC,19/10/2020,Scholar Stipend,Awards Costs,Scholar,PIN050037,984.44,
FCDO,CSC,19/10/2020,Scholar Stipend,Awards Costs,Scholar,PIN050039,989.96,
FCDO,CSC,20/10/2020,Scholar Allowances,Awards Costs,Scholar,PIN050040,622.59,
FCDO,CSC,20/10/2020,Scholar Allowances,Awards Costs,Scholar,PIN050041,724.21,
FCDO,CSC,20/10/2020,Scholar Allowances,Awards Costs,Scholar,PIN050042,959.41,
FCDO,CSC,20/10/2020,Scholar Allowances,Awards Costs,Scholar,PIN050042,645.58,
FCDO,CSC,20/10/2020,Scholar Allowances,Awards Costs,Scholar,PIN050043,727.85,
FCDO,CSC,20/10/2020,Scholar Allowances,Awards Costs,Scholar,PIN050043,727.85,
FCDO,CSC,21/10/2020,Scholar Allowances,Awards Costs,Scholar,PIN050047,200,
FCDO,CSC,21/10/2020,Scholar Stipend,Awards Costs,Scholar,PIN050047,838.77,
FCDO,CSC,21/10/2020,Scholar Stipend,Awards Costs,Scholar,PIN050048,765.83,
FCDO,CSC,21/10/2020,Scholar Allowances,Awards Costs,Scholar,PIN050048,300,
FCDO,CSC,21/10/2020,Scholar Allowances,Awards Costs,Scholar,PIN050049,250,
FCDO,CSC,21/10/2020,Scholar Stipend,Awards Costs,Scholar,PIN050049,2232,
FCDO,CSC,21/10/2020,Scholar Stipend,Awards Costs,Scholar,PIN050050,3255.86,
FCDO,CSC,21/10/2020,Scholar Stipend,Awards Costs,Scholar,PIN050051,3348,
FCDO,CSC,23/10/2020,Award Support Costs,Awards Costs,University of Cambridge,PIN050052,8000,
FCDO,CSC,23/10/2020,Award Support Costs,Awards Costs,University of Cambridge,PIN050053,3500,
FCDO,CSC,23/10/2020,Immigration Health Surcharge,Awards Costs,Scholar,PIN050055,150,
FCDO,CSC,23/10/2020,Visa Costs,Awards Costs,Scholar,PIN050055,494.2,
FCDO,CSC,23/10/2020,Tuition Fee,Awards Costs,Wolfson College,PIN050056,18000,
FCDO,CSC,23/10/2020,Award Support Costs,Awards Costs,University of Bristol,PIN050057,4500,
FCDO,CSC,23/10/2020,Tuition Fee,Awards Costs,Queens University Belfast,PIN050058,13040,
FCDO,CSC,23/10/2020,Tuition Fee,Awards Costs,London School of Economics,PIN050060,18000,
FCDO,CSC,23/10/2020,Award Support Costs,Awards Costs,University of Plymouth,PIN050061,5000,
FCDO,CSC,23/10/2020,Tuition Fee,Awards Costs,University of Plymouth,PIN050061,12260,
FCDO,CSC,23/10/2020,Tuition Fee,Awards Costs,Swansea University,PIN050063,12960,
FCDO,CSC,23/10/2020,Scholar Allowances,Awards Costs,University of Oxford,PIN050064,225,
FCDO,CSC,23/10/2020,Scholar Allowances,Awards Costs,University of Oxford,PIN050064,250,
FCDO,CSC,23/10/2020,Scholar Travel,Awards Costs,University of Oxford,PIN050064,429.21,
FCDO,CSC,23/10/2020,Tuition Fee,Awards Costs,St Cross College Oxford,PIN050065,22500,
FCDO,CSC,23/10/2020,Award Support Costs,Awards Costs,University of Bristol,PIN050066,4500,
FCDO,CSC,23/10/2020,Scholar Travel,Awards Costs,Scholar,PIN050067,660,
FCDO,CSC,28/10/2020,Scholar Stipend,Awards Costs,Scholar,PIN050069,905.71,
FCDO,CSC,28/10/2020,Scholar Stipend,Awards Costs,Scholar,PIN050074,721.86,
FCDO,CSC,28/10/2020,Scholar Stipend,Awards Costs,Scholar,PIN050079,721.86,
FCDO,CSC,28/10/2020,Scholar Stipend,Awards Costs,Scholar,PIN050084,721.86,
FCDO,CSC,28/10/2020,Scholar Stipend,Awards Costs,Scholar,PIN050087,962.28,
FCDO,CSC,28/10/2020,Scholar Stipend,Awards Costs,Scholar,PIN050090,1116,
FCDO,CSC,28/10/2020,Scholar Stipend,Awards Costs,Scholar,PIN050095,721.86,
FCDO,CSC,28/10/2020,Scholar Stipend,Awards Costs,Scholar,PIN050100,721.86,
FCDO,CSC,28/10/2020,Scholar Stipend,Awards Costs,Scholar,PIN050105,721.86,
FCDO,CSC,28/10/2020,Scholar Stipend,Awards Costs,Scholar,PIN050108,962.28,
FCDO,CSC,23/10/2020,Scholar Stipend,Awards Costs,Scholar,PIN050111,2069.3,
FCDO,CSC,23/10/2020,Scholar Stipend,Awards Costs,Scholar,PIN050112,3348,
FCDO,CSC,23/10/2020,Scholar Allowances,Awards Costs,Scholar,PIN050113,720,
FCDO,CSC,23/10/2020,Scholar Allowances,Awards Costs,Scholar,PIN050113,1074,
FCDO,CSC,23/10/2020,Scholar Stipend,Awards Costs,Scholar,PIN050113,3348,
FCDO,CSC,23/10/2020,Scholar Stipend,Awards Costs,Scholar,PIN050114,2232,
FCDO,CSC,23/10/2020,Scholar Stipend,Awards Costs,Scholar,PIN050116,1116,
FCDO,CSC,23/10/2020,Scholar Stipend,Awards Costs,Scholar,PIN050117,1116,
FCDO,CSC,23/10/2020,Scholar Stipend,Awards Costs,Scholar,PIN050118,1116,
FCDO,CSC,23/10/2020,Scholar Stipend,Awards Costs,Scholar,PIN050119,2232,
FCDO,CSC,23/10/2020,Scholar Allowances,Awards Costs,Scholar,PIN050120,480,
FCDO,CSC,23/10/2020,Scholar Allowances,Awards Costs,Scholar,PIN050120,716,
FCDO,CSC,23/10/2020,Scholar Stipend,Awards Costs,Scholar,PIN050120,2232,
FCDO,CSC,23/10/2020,Scholar Stipend,Awards Costs,Scholar,PIN050121,1116,
FCDO,CSC,23/10/2020,Scholar Stipend,Awards Costs,Scholar,PIN050122,1116,
FCDO,CSC,23/10/2020,Scholar Allowances,Awards Costs,Scholar,PIN050123,480,
FCDO,CSC,23/10/2020,Scholar Allowances,Awards Costs,Scholar,PIN050123,952,
FCDO,CSC,23/10/2020,Scholar Stipend,Awards Costs,Scholar,PIN050123,2232,
FCDO,CSC,23/10/2020,Scholar Stipend,Awards Costs,Scholar,PIN050124,2738,
FCDO,CSC,23/10/2020,Scholar Stipend,Awards Costs,Scholar,PIN050125,2232,
FCDO,CSC,23/10/2020,Scholar Stipend,Awards Costs,Scholar,PIN050126,2232,
FCDO,CSC,30/10/2020,Visa Costs,Awards Costs,Scholar,PIN050127,494.2,
FCDO,CSC,30/10/2020,Immigration Health Surcharge,Awards Costs,Scholar,PIN050127,450,
FCDO,CSC,30/10/2020,Scholar Travel,Awards Costs,Bangor University,PIN050128,486.74,
FCDO,CSC,30/10/2020,Scholar Travel,Awards Costs,Bangor University,PIN050128,3590.9,
FCDO,CSC,30/10/2020,Award Support Costs,Awards Costs,University of Plymouth,PIN050134,750,
FCDO,CSC,30/10/2020,Tuition Fee,Awards Costs,University of Plymouth,PIN050134,10248,
FCDO,CSC,30/10/2020,Scholar Allowances,Awards Costs,Scholar,PIN050135,600,
FCDO,CSC,01/10/2020,Bank Charges,Programme Costs,MasterCard Prepaid Management Services Ltd,PIN050139,135.78,
FCDO,CSC,01/10/2020,Scholar Allowances,Awards Costs,Scholar,PIN050139,431,
FCDO,CSC,01/10/2020,Scholar Stipend,Awards Costs,Scholar,PIN050139,4511.8,
FCDO,CSC,01/10/2020,Scholar Allowances,Awards Costs,Scholar,PIN050139,431,
FCDO,CSC,01/10/2020,Scholar Stipend,Awards Costs,Scholar,PIN050139,3531.33,
FCDO,CSC,01/10/2020,Scholar Allowances,Awards Costs,Scholar,PIN050139,431,
FCDO,CSC,01/10/2020,Scholar Stipend,Awards Costs,Scholar,PIN050139,4241.93,
FCDO,CSC,06/10/2020,Scholar Allowances,Awards Costs,Scholar,PIN050140,431,
FCDO,CSC,06/10/2020,Scholar Stipend,Awards Costs,Scholar,PIN050140,3952.39,
FCDO,CSC,06/10/2020,Scholar Allowances,Awards Costs,Scholar,PIN050140,431,
FCDO,CSC,06/10/2020,Scholar Stipend,Awards Costs,Scholar,PIN050140,3604.66,
FCDO,CSC,06/10/2020,Scholar Allowances,Awards Costs,Scholar,PIN050140,431,
FCDO,CSC,06/10/2020,Scholar Stipend,Awards Costs,Scholar,PIN050140,4241.93,
FCDO,CSC,06/10/2020,Scholar Allowances,Awards Costs,Scholar,PIN050140,431,
FCDO,CSC,06/10/2020,Scholar Stipend,Awards Costs,Scholar,PIN050140,3295.29,
FCDO,CSC,06/10/2020,Bank Charges,Programme Costs,MasterCard Prepaid Management Services Ltd,PIN050140,168.18,
FCDO,CSC,08/10/2020,Scholar Allowances,Awards Costs,Scholar,PIN050141,431,
FCDO,CSC,08/10/2020,Scholar Stipend,Awards Costs,Scholar,PIN050141,3258.63,
FCDO,CSC,08/10/2020,Scholar Allowances,Awards Costs,Scholar,PIN050141,431,
FCDO,CSC,08/10/2020,Scholar Stipend,Awards Costs,Scholar,PIN050141,3258.63,
FCDO,CSC,08/10/2020,Scholar Allowances,Awards Costs,Scholar,PIN050141,431,
FCDO,CSC,08/10/2020,Scholar Stipend,Awards Costs,Scholar,PIN050141,3295.29,
FCDO,CSC,08/10/2020,Scholar Allowances,Awards Costs,Scholar,PIN050141,431,
FCDO,CSC,08/10/2020,Scholar Stipend,Awards Costs,Scholar,PIN050141,4042.34,
FCDO,CSC,08/10/2020,Scholar Allowances,Awards Costs,Scholar,PIN050141,431,
FCDO,CSC,08/10/2020,Scholar Stipend,Awards Costs,Scholar,PIN050141,3997.37,
FCDO,CSC,08/10/2020,Scholar Allowances,Awards Costs,Scholar,PIN050141,431,
FCDO,CSC,08/10/2020,Scholar Stipend,Awards Costs,Scholar,PIN050141,3348,
FCDO,CSC,08/10/2020,Scholar Allowances,Awards Costs,Scholar,PIN050141,431,
FCDO,CSC,08/10/2020,Scholar Stipend,Awards Costs,Scholar,PIN050141,4042.34,
FCDO,CSC,08/10/2020,Scholar Allowances,Awards Costs,Scholar,PIN050141,431,
FCDO,CSC,08/10/2020,Scholar Stipend,Awards Costs,Scholar,PIN050141,2965.31,
FCDO,CSC,08/10/2020,Scholar Allowances,Awards Costs,Scholar,PIN050141,431,
FCDO,CSC,08/10/2020,Scholar Stipend,Awards Costs,Scholar,PIN050141,3348,
FCDO,CSC,08/10/2020,Bank Charges,Programme Costs,MasterCard Prepaid Management Services Ltd,PIN050141,354.34,
FCDO,CSC,09/10/2020,Scholar Allowances,Awards Costs,Scholar,PIN050142,431,
FCDO,CSC,09/10/2020,Scholar Stipend,Awards Costs,Scholar,PIN050142,3907.41,
FCDO,CSC,09/10/2020,Scholar Allowances,Awards Costs,Scholar,PIN050142,431,
FCDO,CSC,09/10/2020,Scholar Stipend,Awards Costs,Scholar,PIN050142,3331.96,
FCDO,CSC,09/10/2020,Scholar Allowances,Awards Costs,Scholar,PIN050142,431,
FCDO,CSC,09/10/2020,Scholar Stipend,Awards Costs,Scholar,PIN050142,3221.96,
FCDO,CSC,09/10/2020,Scholar Allowances,Awards Costs,Scholar,PIN050142,431,
FCDO,CSC,09/10/2020,Scholar Stipend,Awards Costs,Scholar,PIN050142,3185.3,
FCDO,CSC,09/10/2020,Bank Charges,Programme Costs,MasterCard Prepaid Management Services Ltd,PIN050142,153.7,
FCDO,CSC,13/10/2020,Scholar Allowances,Awards Costs,Scholar,PIN050143,431,
FCDO,CSC,13/10/2020,Scholar Stipend,Awards Costs,Scholar,PIN050143,3295.29,
FCDO,CSC,13/10/2020,Scholar Allowances,Awards Costs,Scholar,PIN050143,431,
FCDO,CSC,13/10/2020,Scholar Stipend,Awards Costs,Scholar,PIN050143,3221.96,
FCDO,CSC,13/10/2020,Scholar Allowances,Awards Costs,Scholar,PIN050143,431,
FCDO,CSC,13/10/2020,Scholar Stipend,Awards Costs,Scholar,PIN050143,2965.31,
FCDO,CSC,13/10/2020,Scholar Allowances,Awards Costs,Scholar,PIN050143,431,
FCDO,CSC,13/10/2020,Scholar Stipend,Awards Costs,Scholar,PIN050143,2928.64,
FCDO,CSC,13/10/2020,Scholar Allowances,Awards Costs,Scholar,PIN050143,431,
FCDO,CSC,13/10/2020,Scholar Stipend,Awards Costs,Scholar,PIN050143,3148.63,
FCDO,CSC,13/10/2020,Scholar Allowances,Awards Costs,Scholar,PIN050143,431,
FCDO,CSC,13/10/2020,Scholar Stipend,Awards Costs,Scholar,PIN050143,4087.32,
FCDO,CSC,13/10/2020,Scholar Allowances,Awards Costs,Scholar,PIN050143,431,
FCDO,CSC,13/10/2020,Scholar Stipend,Awards Costs,Scholar,PIN050143,3185.3,
FCDO,CSC,13/10/2020,Scholar Allowances,Awards Costs,Scholar,PIN050143,431,
FCDO,CSC,13/10/2020,Scholar Stipend,Awards Costs,Scholar,PIN050143,3331.96,
FCDO,CSC,13/10/2020,Scholar Allowances,Awards Costs,Scholar,PIN050143,431,
FCDO,CSC,13/10/2020,Scholar Stipend,Awards Costs,Scholar,PIN050143,3727.5,
FCDO,CSC,13/10/2020,Bank Charges,Programme Costs,MasterCard Prepaid Management Services Ltd,PIN050143,337.71,
FCDO,CSC,16/10/2020,Scholar Allowances,Awards Costs,Scholar,PIN050144,431,
FCDO,CSC,16/10/2020,Scholar Stipend,Awards Costs,Scholar,PIN050144,3038.64,
FCDO,CSC,16/10/2020,Scholar Allowances,Awards Costs,Scholar,PIN050144,431,
FCDO,CSC,16/10/2020,Scholar Stipend,Awards Costs,Scholar,PIN050144,3038.64,
FCDO,CSC,16/10/2020,Scholar Allowances,Awards Costs,Scholar,PIN050144,431,
FCDO,CSC,16/10/2020,Scholar Stipend,Awards Costs,Scholar,PIN050144,3682.53,
FCDO,CSC,16/10/2020,Scholar Allowances,Awards Costs,Scholar,PIN050144,431,
FCDO,CSC,16/10/2020,Scholar Stipend,Awards Costs,Scholar,PIN050144,1922.64,
FCDO,CSC,16/10/2020,Bank Charges,Programme Costs,MasterCard Prepaid Management Services Ltd,PIN050144,134.08,
FCDO,CSC,19/10/2020,Scholar Allowances,Awards Costs,Scholar,PIN050145,431,
FCDO,CSC,19/10/2020,Scholar Stipend,Awards Costs,Scholar,PIN050145,3001.97,
FCDO,CSC,19/10/2020,Scholar Allowances,Awards Costs,Scholar,PIN050145,431,
FCDO,CSC,19/10/2020,Scholar Stipend,Awards Costs,Scholar,PIN050145,2855.31,
FCDO,CSC,19/10/2020,Bank Charges,Programme Costs,MasterCard Prepaid Management Services Ltd,PIN050145,67.19,
FCDO,CSC,20/10/2020,Scholar Allowances,Awards Costs,Scholar,PIN050146,431,
FCDO,CSC,20/10/2020,Scholar Stipend,Awards Costs,Scholar,PIN050146,3817.46,
FCDO,CSC,20/10/2020,Scholar Allowances,Awards Costs,Scholar,PIN050146,431,
FCDO,CSC,20/10/2020,Scholar Stipend,Awards Costs,Scholar,PIN050146,3412.66,
FCDO,CSC,20/10/2020,Scholar Allowances,Awards Costs,Scholar,PIN050146,431,
FCDO,CSC,20/10/2020,Scholar Stipend,Awards Costs,Scholar,PIN050146,2891.98,
FCDO,CSC,20/10/2020,Scholar Allowances,Awards Costs,Scholar,PIN050146,431,
FCDO,CSC,20/10/2020,Scholar Stipend,Awards Costs,Scholar,PIN050146,2855.31,
FCDO,CSC,20/10/2020,Scholar Allowances,Awards Costs,Scholar,PIN050146,431,
FCDO,CSC,20/10/2020,Scholar Stipend,Awards Costs,Scholar,PIN050146,3682.53,
FCDO,CSC,20/10/2020,Bank Charges,Programme Costs,MasterCard Prepaid Management Services Ltd,PIN050146,188.15,
FCDO,CSC,21/10/2020,Scholar Allowances,Awards Costs,Scholar,PIN050147,431,
FCDO,CSC,21/10/2020,Scholar Stipend,Awards Costs,Scholar,PIN050147,2781.98,
FCDO,CSC,21/10/2020,Scholar Allowances,Awards Costs,Scholar,PIN050147,431,
FCDO,CSC,21/10/2020,Scholar Stipend,Awards Costs,Scholar,PIN050147,2781.98,
FCDO,CSC,21/10/2020,Scholar Allowances,Awards Costs,Scholar,PIN050147,431,
FCDO,CSC,21/10/2020,Scholar Stipend,Awards Costs,Scholar,PIN050147,3502.62,
FCDO,CSC,21/10/2020,Scholar Allowances,Awards Costs,Scholar,PIN050147,431,
FCDO,CSC,21/10/2020,Scholar Stipend,Awards Costs,Scholar,PIN050147,2855.31,
FCDO,CSC,21/10/2020,Scholar Allowances,Awards Costs,Scholar,PIN050147,431,
FCDO,CSC,21/10/2020,Scholar Stipend,Awards Costs,Scholar,PIN050147,2598.65,
FCDO,CSC,21/10/2020,Bank Charges,Programme Costs,MasterCard Prepaid Management Services Ltd,PIN050147,166.76,
FCDO,CSC,22/10/2020,Scholar Allowances,Awards Costs,Scholar,PIN050148,-1995.25,
FCDO,CSC,22/10/2020,Scholar Allowances,Awards Costs,Scholar,PIN050148,431,
FCDO,CSC,22/10/2020,Scholar Stipend,Awards Costs,Scholar,PIN050148,3001.97,
FCDO,CSC,22/10/2020,Scholar Allowances,Awards Costs,Scholar,PIN050148,431,
FCDO,CSC,22/10/2020,Scholar Stipend,Awards Costs,Scholar,PIN050148,2745.31,
FCDO,CSC,22/10/2020,Bank Charges,Programme Costs,MasterCard Prepaid Management Services Ltd,PIN050148,66.09,
FCDO,CSC,26/10/2020,Scholar Stipend,Awards Costs,Scholar,PIN050149,256.66,
FCDO,CSC,26/10/2020,Scholar Allowances,Awards Costs,Scholar,PIN050149,431,
FCDO,CSC,26/10/2020,Scholar Stipend,Awards Costs,Scholar,PIN050149,3026.11,
FCDO,CSC,26/10/2020,Scholar Allowances,Awards Costs,Scholar,PIN050149,431,
FCDO,CSC,26/10/2020,Scholar Stipend,Awards Costs,Scholar,PIN050149,3265.65,
FCDO,CSC,26/10/2020,Scholar Allowances,Awards Costs,Scholar,PIN050149,431,
FCDO,CSC,26/10/2020,Scholar Stipend,Awards Costs,Scholar,PIN050149,4088.99,
FCDO,CSC,26/10/2020,Scholar Allowances,Awards Costs,Scholar,PIN050149,431,
FCDO,CSC,26/10/2020,Scholar Stipend,Awards Costs,Scholar,PIN050149,3001.97,
FCDO,CSC,26/10/2020,Scholar Allowances,Awards Costs,Scholar,PIN050149,431,
FCDO,CSC,26/10/2020,Scholar Stipend,Awards Costs,Scholar,PIN050149,2942.68,
FCDO,CSC,26/10/2020,Scholar Allowances,Awards Costs,Scholar,PIN050149,431,
FCDO,CSC,26/10/2020,Scholar Stipend,Awards Costs,Scholar,PIN050149,3486.92,
FCDO,CSC,26/10/2020,Scholar Allowances,Awards Costs,Scholar,PIN050149,431,
FCDO,CSC,26/10/2020,Scholar Stipend,Awards Costs,Scholar,PIN050149,3199.33,
FCDO,CSC,26/10/2020,Bank Charges,Programme Costs,MasterCard Prepaid Management Services Ltd,PIN050149,262.86,
FCDO,CSC,28/10/2020,Scholar Allowances,Awards Costs,Scholar,PIN050150,431,
FCDO,CSC,28/10/2020,Scholar Stipend,Awards Costs,Scholar,PIN050150,3104.49,
FCDO,CSC,28/10/2020,Scholar Allowances,Awards Costs,Scholar,PIN050150,431,
FCDO,CSC,28/10/2020,Scholar Stipend,Awards Costs,Scholar,PIN050150,3412.96,
FCDO,CSC,28/10/2020,Scholar Allowances,Awards Costs,Scholar,PIN050150,431,
FCDO,CSC,28/10/2020,Scholar Stipend,Awards Costs,Scholar,PIN050150,3412.96,
FCDO,CSC,28/10/2020,Scholar Allowances,Awards Costs,Scholar,PIN050150,431,
FCDO,CSC,28/10/2020,Scholar Stipend,Awards Costs,Scholar,PIN050150,3920.94,
FCDO,CSC,28/10/2020,Scholar Allowances,Awards Costs,Scholar,PIN050150,431,
FCDO,CSC,28/10/2020,Scholar Stipend,Awards Costs,Scholar,PIN050150,2583.5,
FCDO,CSC,28/10/2020,Scholar Allowances,Awards Costs,Scholar,PIN050150,431,
FCDO,CSC,28/10/2020,Scholar Stipend,Awards Costs,Scholar,PIN050150,2763.09,
FCDO,CSC,28/10/2020,Bank Charges,Programme Costs,MasterCard Prepaid Management Services Ltd,PIN050150,217.84,
FCDO,CSC,29/10/2020,Scholar Allowances,Awards Costs,Scholar,PIN050151,-431,
FCDO,CSC,29/10/2020,Scholar Stipend,Awards Costs,Scholar,PIN050151,-3412.96,
FCDO,CSC,30/10/2020,Scholar Allowances,Awards Costs,Scholar,PIN050152,-65.85,
FCDO,CSC,30/10/2020,Scholar Allowances,Awards Costs,Scholar,PIN050152,431,
FCDO,CSC,30/10/2020,Scholar Stipend,Awards Costs,Scholar,PIN050152,3859.19,
FCDO,CSC,30/10/2020,Bank Charges,Programme Costs,MasterCard Prepaid Management Services Ltd,PIN050152,42.9,
FCDO,CSC,22/10/2020,Scholar Allowances,Awards Costs,Scholar,PRF000197,-609,
FCDO,CSC,26/10/2020,Scholar Stipend,Awards Costs,Scholar,PRF000198,-5058,
FCDO,CSC,30/10/2020,Scholar Stipend,Awards Costs,Scholar,PRF000199,-1629.31,
FCDO,CSC,01/10/2020,Commission Meetings,Admin Costs,Commission Chair,PPI050188,3000,
